{"text_format":"1","workbook":"xlsx","n_sheets":5,"sheets":["Договора","Приложения","Справочники","Проверка","Согласование"],"not_rendered":{"charts":0,"images":0,"macros":1,"external_links":0,"defined_names":0,"comments":0,"pivot_tables":0},"unopened":[],"bounds":{"document_bytes":16777216,"sheet_cells":100000,"rows_first":2000,"rows_last":500,"rows_between":2000,"halvings":0,"cell_chars":16384,"cell_head_chars":4096},"cells_cut":0,"cells_raw":0,"read":"whole","date_system":"1900"}

{"sheet":"Договора","index":0,"n_rows":11,"n_cols":13,"rows_kept":11,"cut":false,"hidden":false,"merged":[]}
["№","№ договора","Компания","Дата начала договора","Дата окончания договора","ИНН","№ Согласования","Примечание","Адрес","Повтор","Смена Юр. Реквизитов/Пролонгация","Местоположение","Условия оплаты"]
[1,"1а","ООО  \"Первый\"","2022-01-01","до исполнения",1234567890,null,null,"Ленинский",{"$f":"IF(COUNTIF(B:B,B2)>1,\"Дубликат\",\"\")","v":""},null,"Архив",50]
[2,"2б","ООО \"Второй\"","2022-01-02","1год",1234567890,null,null,"Ленинский","",null,"Архив",60]
[3,"3в","ООО \"Третий\"","2022-01-03","31.12.2022/автопролонгация",1234567890,null,null,"Ленинский","",null,"Архив",70]
[4,"4г","ЗАО \"Четвертый\"","2022-01-04","31.12.2022/автопролонгация",1234567890,null,null,"Ленинский","",null,"Архив",50]
[5,"5д","ООО \"Пятый\"","2022-01-05","2022-12-31",1234567890,null,null,"Ленинский","",null,"Архив",50]
[6,"6е","ООО \"Шестой\"","2022-01-06","2022-12-31",1234567890,null,null,"Ленинский","",null,"Архив",50]
[7,"7ж","ОАО \"Седьмой\"","2022-01-07","31.12.2022/автопролонгация",1234567890,null,null,"Ленинский","",null,"Архив",60]
[8,"8з","ООО \"Восьмойт\"","2022-01-08","2022-12-31",1234567890,null,null,"Ленинский","",null,"Архив",70]
[9,"9и","ООО \"Девятый\"","2022-01-09","2022-12-31",1234567890,null,null,"Ленинский","",null,"Архив",30]
[10,"10/1923/о-2022","ООО \"Десятый\"","2022-01-10","до исполнения",1234567890,null,null,"Ленинский","",null,"Архив",30]

{"sheet":"Приложения","index":1,"n_rows":24,"n_cols":12,"rows_kept":24,"cut":false,"hidden":false,"merged":[]}
["№","Вид документа","№ документа","Дата документа","№ договора","Компания","Дата начала договора","№ Согласование","Примечание","Кол-во дубликатов","Принял ФИО","Дата принятия"]
[1,"Ведомость исполнения","1","2011-08-01","1а",{"$f":"IF(E2=\"\",\"\",INDEX(Договора!$B$1:$D$2008,MATCH($E2,Договора!$B$1:$B$2008,0),MATCH(F$1,Договора!$B$1:$D$1,0)))","v":"ООО  \"Первый\""},{"$f":"IF(E2=\"\",\"\",INDEX(Договора!$B$1:$D$2008,MATCH($E2,Договора!$B$1:$B$2008,0),MATCH(G$1,Договора!$B$1:$D$1,0)))","v":"2022-01-01"},"0001107",null,{"$f":"IF(C2=\"\",\"\",IF(COUNTIFS(Приложения!$C$1:C1,Приложения!C2,Приложения!$D$1:D1,Приложения!D2,Приложения!$E$1:E1,Приложения!E2,Приложения!$F$1:F1,Приложения!F2,Приложения!$G$1:G1,Приложения!G2,Приложения!$B$1:B1,Приложения!B2)=0,\"Оригинал\",IF(COUNTIFS(Приложения!$C$1:C1,Приложения!C2,Приложения!$D$1:D1,Приложения!D2,Приложения!$E$1:E1,Приложения!E2,Приложения!$F$1:F1,Приложения!F2,Приложения!$G$1:G1,Приложения!G2,Приложения!$B$1:B1,Приложения!B2)=1,\"Дубликат\",\"Проверить\")))","v":"Оригинал"}]
[2,"Протокол согласования цены","к ви 1","2011-08-01","1а",{"$f":"IF(E3=\"\",\"\",INDEX(Договора!$B$1:$D$2008,MATCH($E3,Договора!$B$1:$B$2008,0),MATCH(F$1,Договора!$B$1:$D$1,0)))","v":"ООО  \"Первый\""},{"$f":"IF(E3=\"\",\"\",INDEX(Договора!$B$1:$D$2008,MATCH($E3,Договора!$B$1:$B$2008,0),MATCH(G$1,Договора!$B$1:$D$1,0)))","v":"2022-01-01"},"0001108",null,{"$f":"IF(C3=\"\",\"\",IF(COUNTIFS(Приложения!$C$1:C2,Приложения!C3,Приложения!$D$1:D2,Приложения!D3,Приложения!$E$1:E2,Приложения!E3,Приложения!$F$1:F2,Приложения!F3,Приложения!$G$1:G2,Приложения!G3,Приложения!$B$1:B2,Приложения!B3)=0,\"Оригинал\",IF(COUNTIFS(Приложения!$C$1:C2,Приложения!C3,Приложения!$D$1:D2,Приложения!D3,Приложения!$E$1:E2,Приложения!E3,Приложения!$F$1:F2,Приложения!F3,Приложения!$G$1:G2,Приложения!G3,Приложения!$B$1:B2,Приложения!B3)=1,\"Дубликат\",\"Проверить\")))","v":"Оригинал"}]
[3,"Спецификация","1","2011-08-04","3в",{"$f":"IF(E4=\"\",\"\",INDEX(Договора!$B$1:$D$2008,MATCH($E4,Договора!$B$1:$B$2008,0),MATCH(F$1,Договора!$B$1:$D$1,0)))","v":"ООО \"Третий\""},{"$f":"IF(E4=\"\",\"\",INDEX(Договора!$B$1:$D$2008,MATCH($E4,Договора!$B$1:$B$2008,0),MATCH(G$1,Договора!$B$1:$D$1,0)))","v":"2022-01-03"},"0001109",null,{"$f":"IF(C4=\"\",\"\",IF(COUNTIFS(Приложения!$C$1:C3,Приложения!C4,Приложения!$D$1:D3,Приложения!D4,Приложения!$E$1:E3,Приложения!E4,Приложения!$F$1:F3,Приложения!F4,Приложения!$G$1:G3,Приложения!G4,Приложения!$B$1:B3,Приложения!B4)=0,\"Оригинал\",IF(COUNTIFS(Приложения!$C$1:C3,Приложения!C4,Приложения!$D$1:D3,Приложения!D4,Приложения!$E$1:E3,Приложения!E4,Приложения!$F$1:F3,Приложения!F4,Приложения!$G$1:G3,Приложения!G4,Приложения!$B$1:B3,Приложения!B4)=1,\"Дубликат\",\"Проверить\")))","v":"Оригинал"}]
[4,"Заявка","1","2011-08-17","4г",{"$f":"IF(E5=\"\",\"\",INDEX(Договора!$B$1:$D$2008,MATCH($E5,Договора!$B$1:$B$2008,0),MATCH(F$1,Договора!$B$1:$D$1,0)))","v":"ЗАО \"Четвертый\""},{"$f":"IF(E5=\"\",\"\",INDEX(Договора!$B$1:$D$2008,MATCH($E5,Договора!$B$1:$B$2008,0),MATCH(G$1,Договора!$B$1:$D$1,0)))","v":"2022-01-04"},"0001110",null,{"$f":"IF(C5=\"\",\"\",IF(COUNTIFS(Приложения!$C$1:C4,Приложения!C5,Приложения!$D$1:D4,Приложения!D5,Приложения!$E$1:E4,Приложения!E5,Приложения!$F$1:F4,Приложения!F5,Приложения!$G$1:G4,Приложения!G5,Приложения!$B$1:B4,Приложения!B5)=0,\"Оригинал\",IF(COUNTIFS(Приложения!$C$1:C4,Приложения!C5,Приложения!$D$1:D4,Приложения!D5,Приложения!$E$1:E4,Приложения!E5,Приложения!$F$1:F4,Приложения!F5,Приложения!$G$1:G4,Приложения!G5,Приложения!$B$1:B4,Приложения!B5)=1,\"Дубликат\",\"Проверить\")))","v":"Оригинал"}]
[5,"Доп.соглашение","1","2011-08-17","5д",{"$f":"IF(E6=\"\",\"\",INDEX(Договора!$B$1:$D$2008,MATCH($E6,Договора!$B$1:$B$2008,0),MATCH(F$1,Договора!$B$1:$D$1,0)))","v":"ООО \"Пятый\""},{"$f":"IF(E6=\"\",\"\",INDEX(Договора!$B$1:$D$2008,MATCH($E6,Договора!$B$1:$B$2008,0),MATCH(G$1,Договора!$B$1:$D$1,0)))","v":"2022-01-05"},"0001111",null,{"$f":"IF(C6=\"\",\"\",IF(COUNTIFS(Приложения!$C$1:C5,Приложения!C6,Приложения!$D$1:D5,Приложения!D6,Приложения!$E$1:E5,Приложения!E6,Приложения!$F$1:F5,Приложения!F6,Приложения!$G$1:G5,Приложения!G6,Приложения!$B$1:B5,Приложения!B6)=0,\"Оригинал\",IF(COUNTIFS(Приложения!$C$1:C5,Приложения!C6,Приложения!$D$1:D5,Приложения!D6,Приложения!$E$1:E5,Приложения!E6,Приложения!$F$1:F5,Приложения!F6,Приложения!$G$1:G5,Приложения!G6,Приложения!$B$1:B5,Приложения!B6)=1,\"Дубликат\",\"Проверить\")))","v":"Оригинал"}]
[6,"Локальная смета","1","2011-08-18","6е",{"$f":"IF(E7=\"\",\"\",INDEX(Договора!$B$1:$D$2008,MATCH($E7,Договора!$B$1:$B$2008,0),MATCH(F$1,Договора!$B$1:$D$1,0)))","v":"ООО \"Шестой\""},{"$f":"IF(E7=\"\",\"\",INDEX(Договора!$B$1:$D$2008,MATCH($E7,Договора!$B$1:$B$2008,0),MATCH(G$1,Договора!$B$1:$D$1,0)))","v":"2022-01-06"},"0001112",null,{"$f":"IF(C7=\"\",\"\",IF(COUNTIFS(Приложения!$C$1:C6,Приложения!C7,Приложения!$D$1:D6,Приложения!D7,Приложения!$E$1:E6,Приложения!E7,Приложения!$F$1:F6,Приложения!F7,Приложения!$G$1:G6,Приложения!G7,Приложения!$B$1:B6,Приложения!B7)=0,\"Оригинал\",IF(COUNTIFS(Приложения!$C$1:C6,Приложения!C7,Приложения!$D$1:D6,Приложения!D7,Приложения!$E$1:E6,Приложения!E7,Приложения!$F$1:F6,Приложения!F7,Приложения!$G$1:G6,Приложения!G7,Приложения!$B$1:B6,Приложения!B7)=1,\"Дубликат\",\"Проверить\")))","v":"Оригинал"}]
[7,"Спецификация","2","2011-08-18","3в",{"$f":"IF(E8=\"\",\"\",INDEX(Договора!$B$1:$D$2008,MATCH($E8,Договора!$B$1:$B$2008,0),MATCH(F$1,Договора!$B$1:$D$1,0)))","v":"ООО \"Третий\""},{"$f":"IF(E8=\"\",\"\",INDEX(Договора!$B$1:$D$2008,MATCH($E8,Договора!$B$1:$B$2008,0),MATCH(G$1,Договора!$B$1:$D$1,0)))","v":"2022-01-03"},"0001113",null,{"$f":"IF(C8=\"\",\"\",IF(COUNTIFS(Приложения!$C$1:C7,Приложения!C8,Приложения!$D$1:D7,Приложения!D8,Приложения!$E$1:E7,Приложения!E8,Приложения!$F$1:F7,Приложения!F8,Приложения!$G$1:G7,Приложения!G8,Приложения!$B$1:B7,Приложения!B8)=0,\"Оригинал\",IF(COUNTIFS(Приложения!$C$1:C7,Приложения!C8,Приложения!$D$1:D7,Приложения!D8,Приложения!$E$1:E7,Приложения!E8,Приложения!$F$1:F7,Приложения!F8,Приложения!$G$1:G7,Приложения!G8,Приложения!$B$1:B7,Приложения!B8)=1,\"Дубликат\",\"Проверить\")))","v":"Оригинал"}]
[8,"Протокол согласования цены","к сп 2","2011-08-30","3в",{"$f":"IF(E9=\"\",\"\",INDEX(Договора!$B$1:$D$2008,MATCH($E9,Договора!$B$1:$B$2008,0),MATCH(F$1,Договора!$B$1:$D$1,0)))","v":"ООО \"Третий\""},{"$f":"IF(E9=\"\",\"\",INDEX(Договора!$B$1:$D$2008,MATCH($E9,Договора!$B$1:$B$2008,0),MATCH(G$1,Договора!$B$1:$D$1,0)))","v":"2022-01-03"},"0001114",null,{"$f":"IF(C9=\"\",\"\",IF(COUNTIFS(Приложения!$C$1:C8,Приложения!C9,Приложения!$D$1:D8,Приложения!D9,Приложения!$E$1:E8,Приложения!E9,Приложения!$F$1:F8,Приложения!F9,Приложения!$G$1:G8,Приложения!G9,Приложения!$B$1:B8,Приложения!B9)=0,\"Оригинал\",IF(COUNTIFS(Приложения!$C$1:C8,Приложения!C9,Приложения!$D$1:D8,Приложения!D9,Приложения!$E$1:E8,Приложения!E9,Приложения!$F$1:F8,Приложения!F9,Приложения!$G$1:G8,Приложения!G9,Приложения!$B$1:B8,Приложения!B9)=1,\"Дубликат\",\"Проверить\")))","v":"Оригинал"}]
[9,"Акт","1","2011-08-30","9и",{"$f":"IF(E10=\"\",\"\",INDEX(Договора!$B$1:$D$2008,MATCH($E10,Договора!$B$1:$B$2008,0),MATCH(F$1,Договора!$B$1:$D$1,0)))","v":"ООО \"Девятый\""},{"$f":"IF(E10=\"\",\"\",INDEX(Договора!$B$1:$D$2008,MATCH($E10,Договора!$B$1:$B$2008,0),MATCH(G$1,Договора!$B$1:$D$1,0)))","v":"2022-01-09"},"0001115",null,{"$f":"IF(C10=\"\",\"\",IF(COUNTIFS(Приложения!$C$1:C9,Приложения!C10,Приложения!$D$1:D9,Приложения!D10,Приложения!$E$1:E9,Приложения!E10,Приложения!$F$1:F9,Приложения!F10,Приложения!$G$1:G9,Приложения!G10,Приложения!$B$1:B9,Приложения!B10)=0,\"Оригинал\",IF(COUNTIFS(Приложения!$C$1:C9,Приложения!C10,Приложения!$D$1:D9,Приложения!D10,Приложения!$E$1:E9,Приложения!E10,Приложения!$F$1:F9,Приложения!F10,Приложения!$G$1:G9,Приложения!G10,Приложения!$B$1:B9,Приложения!B10)=1,\"Дубликат\",\"Проверить\")))","v":"Оригинал"}]
[10,"Ведомость исполнения","1","2011-10-12","10/1923/о-2022",{"$f":"IF(E11=\"\",\"\",INDEX(Договора!$B$1:$D$2008,MATCH($E11,Договора!$B$1:$B$2008,0),MATCH(F$1,Договора!$B$1:$D$1,0)))","v":"ООО \"Десятый\""},{"$f":"IF(E11=\"\",\"\",INDEX(Договора!$B$1:$D$2008,MATCH($E11,Договора!$B$1:$B$2008,0),MATCH(G$1,Договора!$B$1:$D$1,0)))","v":"2022-01-10"},"0001116",null,{"$f":"IF(C11=\"\",\"\",IF(COUNTIFS(Приложения!$C$1:C10,Приложения!C11,Приложения!$D$1:D10,Приложения!D11,Приложения!$E$1:E10,Приложения!E11,Приложения!$F$1:F10,Приложения!F11,Приложения!$G$1:G10,Приложения!G11,Приложения!$B$1:B10,Приложения!B11)=0,\"Оригинал\",IF(COUNTIFS(Приложения!$C$1:C10,Приложения!C11,Приложения!$D$1:D10,Приложения!D11,Приложения!$E$1:E10,Приложения!E11,Приложения!$F$1:F10,Приложения!F11,Приложения!$G$1:G10,Приложения!G11,Приложения!$B$1:B10,Приложения!B11)=1,\"Дубликат\",\"Проверить\")))","v":"Оригинал"}]
[11,"Акт о исполнении договора","-","2011-10-06","1а",{"$f":"IF(E12=\"\",\"\",INDEX(Договора!$B$1:$D$2008,MATCH($E12,Договора!$B$1:$B$2008,0),MATCH(F$1,Договора!$B$1:$D$1,0)))","v":"ООО  \"Первый\""},{"$f":"IF(E12=\"\",\"\",INDEX(Договора!$B$1:$D$2008,MATCH($E12,Договора!$B$1:$B$2008,0),MATCH(G$1,Договора!$B$1:$D$1,0)))","v":"2022-01-01"},"0001117",null,{"$f":"IF(C12=\"\",\"\",IF(COUNTIFS(Приложения!$C$1:C11,Приложения!C12,Приложения!$D$1:D11,Приложения!D12,Приложения!$E$1:E11,Приложения!E12,Приложения!$F$1:F11,Приложения!F12,Приложения!$G$1:G11,Приложения!G12,Приложения!$B$1:B11,Приложения!B12)=0,\"Оригинал\",IF(COUNTIFS(Приложения!$C$1:C11,Приложения!C12,Приложения!$D$1:D11,Приложения!D12,Приложения!$E$1:E11,Приложения!E12,Приложения!$F$1:F11,Приложения!F12,Приложения!$G$1:G11,Приложения!G12,Приложения!$B$1:B11,Приложения!B12)=1,\"Дубликат\",\"Проверить\")))","v":"Оригинал"}]
[12,"Доп.соглашение","1","2011-09-21","9и",{"$f":"IF(E13=\"\",\"\",INDEX(Договора!$B$1:$D$2008,MATCH($E13,Договора!$B$1:$B$2008,0),MATCH(F$1,Договора!$B$1:$D$1,0)))","v":"ООО \"Девятый\""},{"$f":"IF(E13=\"\",\"\",INDEX(Договора!$B$1:$D$2008,MATCH($E13,Договора!$B$1:$B$2008,0),MATCH(G$1,Договора!$B$1:$D$1,0)))","v":"2022-01-09"},"0001118",null,{"$f":"IF(C13=\"\",\"\",IF(COUNTIFS(Приложения!$C$1:C12,Приложения!C13,Приложения!$D$1:D12,Приложения!D13,Приложения!$E$1:E12,Приложения!E13,Приложения!$F$1:F12,Приложения!F13,Приложения!$G$1:G12,Приложения!G13,Приложения!$B$1:B12,Приложения!B13)=0,\"Оригинал\",IF(COUNTIFS(Приложения!$C$1:C12,Приложения!C13,Приложения!$D$1:D12,Приложения!D13,Приложения!$E$1:E12,Приложения!E13,Приложения!$F$1:F12,Приложения!F13,Приложения!$G$1:G12,Приложения!G13,Приложения!$B$1:B12,Приложения!B13)=1,\"Дубликат\",\"Проверить\")))","v":"Оригинал"}]
[13,"Доп.соглашение","2","2013-01-15","9и",{"$f":"IF(E14=\"\",\"\",INDEX(Договора!$B$1:$D$2008,MATCH($E14,Договора!$B$1:$B$2008,0),MATCH(F$1,Договора!$B$1:$D$1,0)))","v":"ООО \"Девятый\""},{"$f":"IF(E14=\"\",\"\",INDEX(Договора!$B$1:$D$2008,MATCH($E14,Договора!$B$1:$B$2008,0),MATCH(G$1,Договора!$B$1:$D$1,0)))","v":"2022-01-09"},"0001119",null,{"$f":"IF(C14=\"\",\"\",IF(COUNTIFS(Приложения!$C$1:C13,Приложения!C14,Приложения!$D$1:D13,Приложения!D14,Приложения!$E$1:E13,Приложения!E14,Приложения!$F$1:F13,Приложения!F14,Приложения!$G$1:G13,Приложения!G14,Приложения!$B$1:B13,Приложения!B14)=0,\"Оригинал\",IF(COUNTIFS(Приложения!$C$1:C13,Приложения!C14,Приложения!$D$1:D13,Приложения!D14,Приложения!$E$1:E13,Приложения!E14,Приложения!$F$1:F13,Приложения!F14,Приложения!$G$1:G13,Приложения!G14,Приложения!$B$1:B13,Приложения!B14)=1,\"Дубликат\",\"Проверить\")))","v":"Оригинал"}]
[14,"Доп.соглашение","3","2014-06-16","9и",{"$f":"IF(E15=\"\",\"\",INDEX(Договора!$B$1:$D$2008,MATCH($E15,Договора!$B$1:$B$2008,0),MATCH(F$1,Договора!$B$1:$D$1,0)))","v":"ООО \"Девятый\""},{"$f":"IF(E15=\"\",\"\",INDEX(Договора!$B$1:$D$2008,MATCH($E15,Договора!$B$1:$B$2008,0),MATCH(G$1,Договора!$B$1:$D$1,0)))","v":"2022-01-09"},"0001120",null,{"$f":"IF(C15=\"\",\"\",IF(COUNTIFS(Приложения!$C$1:C14,Приложения!C15,Приложения!$D$1:D14,Приложения!D15,Приложения!$E$1:E14,Приложения!E15,Приложения!$F$1:F14,Приложения!F15,Приложения!$G$1:G14,Приложения!G15,Приложения!$B$1:B14,Приложения!B15)=0,\"Оригинал\",IF(COUNTIFS(Приложения!$C$1:C14,Приложения!C15,Приложения!$D$1:D14,Приложения!D15,Приложения!$E$1:E14,Приложения!E15,Приложения!$F$1:F14,Приложения!F15,Приложения!$G$1:G14,Приложения!G15,Приложения!$B$1:B14,Приложения!B15)=1,\"Дубликат\",\"Проверить\")))","v":"Оригинал"}]
[15,"Доп.соглашение","1","2014-08-27","2б",{"$f":"IF(E16=\"\",\"\",INDEX(Договора!$B$1:$D$2008,MATCH($E16,Договора!$B$1:$B$2008,0),MATCH(F$1,Договора!$B$1:$D$1,0)))","v":"ООО \"Второй\""},{"$f":"IF(E16=\"\",\"\",INDEX(Договора!$B$1:$D$2008,MATCH($E16,Договора!$B$1:$B$2008,0),MATCH(G$1,Договора!$B$1:$D$1,0)))","v":"2022-01-02"},"0001121",null,{"$f":"IF(C16=\"\",\"\",IF(COUNTIFS(Приложения!$C$1:C15,Приложения!C16,Приложения!$D$1:D15,Приложения!D16,Приложения!$E$1:E15,Приложения!E16,Приложения!$F$1:F15,Приложения!F16,Приложения!$G$1:G15,Приложения!G16,Приложения!$B$1:B15,Приложения!B16)=0,\"Оригинал\",IF(COUNTIFS(Приложения!$C$1:C15,Приложения!C16,Приложения!$D$1:D15,Приложения!D16,Приложения!$E$1:E15,Приложения!E16,Приложения!$F$1:F15,Приложения!F16,Приложения!$G$1:G15,Приложения!G16,Приложения!$B$1:B15,Приложения!B16)=1,\"Дубликат\",\"Проверить\")))","v":"Оригинал"}]
[16,"Доп.соглашение","2","2014-12-16","2б",{"$f":"IF(E17=\"\",\"\",INDEX(Договора!$B$1:$D$2008,MATCH($E17,Договора!$B$1:$B$2008,0),MATCH(F$1,Договора!$B$1:$D$1,0)))","v":"ООО \"Второй\""},{"$f":"IF(E17=\"\",\"\",INDEX(Договора!$B$1:$D$2008,MATCH($E17,Договора!$B$1:$B$2008,0),MATCH(G$1,Договора!$B$1:$D$1,0)))","v":"2022-01-02"},"0001122",null,{"$f":"IF(C17=\"\",\"\",IF(COUNTIFS(Приложения!$C$1:C16,Приложения!C17,Приложения!$D$1:D16,Приложения!D17,Приложения!$E$1:E16,Приложения!E17,Приложения!$F$1:F16,Приложения!F17,Приложения!$G$1:G16,Приложения!G17,Приложения!$B$1:B16,Приложения!B17)=0,\"Оригинал\",IF(COUNTIFS(Приложения!$C$1:C16,Приложения!C17,Приложения!$D$1:D16,Приложения!D17,Приложения!$E$1:E16,Приложения!E17,Приложения!$F$1:F16,Приложения!F17,Приложения!$G$1:G16,Приложения!G17,Приложения!$B$1:B16,Приложения!B17)=1,\"Дубликат\",\"Проверить\")))","v":"Оригинал"}]
[17,"Спецификация","1","2017-09-08","9и",{"$f":"IF(E18=\"\",\"\",INDEX(Договора!$B$1:$D$2008,MATCH($E18,Договора!$B$1:$B$2008,0),MATCH(F$1,Договора!$B$1:$D$1,0)))","v":"ООО \"Девятый\""},{"$f":"IF(E18=\"\",\"\",INDEX(Договора!$B$1:$D$2008,MATCH($E18,Договора!$B$1:$B$2008,0),MATCH(G$1,Договора!$B$1:$D$1,0)))","v":"2022-01-09"},"0001123",null,{"$f":"IF(C18=\"\",\"\",IF(COUNTIFS(Приложения!$C$1:C17,Приложения!C18,Приложения!$D$1:D17,Приложения!D18,Приложения!$E$1:E17,Приложения!E18,Приложения!$F$1:F17,Приложения!F18,Приложения!$G$1:G17,Приложения!G18,Приложения!$B$1:B17,Приложения!B18)=0,\"Оригинал\",IF(COUNTIFS(Приложения!$C$1:C17,Приложения!C18,Приложения!$D$1:D17,Приложения!D18,Приложения!$E$1:E17,Приложения!E18,Приложения!$F$1:F17,Приложения!F18,Приложения!$G$1:G17,Приложения!G18,Приложения!$B$1:B17,Приложения!B18)=1,\"Дубликат\",\"Проверить\")))","v":"Оригинал"}]
[18,"Спецификация","2","2017-10-13","9и",{"$f":"IF(E19=\"\",\"\",INDEX(Договора!$B$1:$D$2008,MATCH($E19,Договора!$B$1:$B$2008,0),MATCH(F$1,Договора!$B$1:$D$1,0)))","v":"ООО \"Девятый\""},{"$f":"IF(E19=\"\",\"\",INDEX(Договора!$B$1:$D$2008,MATCH($E19,Договора!$B$1:$B$2008,0),MATCH(G$1,Договора!$B$1:$D$1,0)))","v":"2022-01-09"},"0001124",null,{"$f":"IF(C19=\"\",\"\",IF(COUNTIFS(Приложения!$C$1:C18,Приложения!C19,Приложения!$D$1:D18,Приложения!D19,Приложения!$E$1:E18,Приложения!E19,Приложения!$F$1:F18,Приложения!F19,Приложения!$G$1:G18,Приложения!G19,Приложения!$B$1:B18,Приложения!B19)=0,\"Оригинал\",IF(COUNTIFS(Приложения!$C$1:C18,Приложения!C19,Приложения!$D$1:D18,Приложения!D19,Приложения!$E$1:E18,Приложения!E19,Приложения!$F$1:F18,Приложения!F19,Приложения!$G$1:G18,Приложения!G19,Приложения!$B$1:B18,Приложения!B19)=1,\"Дубликат\",\"Проверить\")))","v":"Оригинал"}]
[19,"Акт о исполнении договора","-","2011-09-06","10/1923/о-2022",{"$f":"IF(E20=\"\",\"\",INDEX(Договора!$B$1:$D$2008,MATCH($E20,Договора!$B$1:$B$2008,0),MATCH(F$1,Договора!$B$1:$D$1,0)))","v":"ООО \"Десятый\""},{"$f":"IF(E20=\"\",\"\",INDEX(Договора!$B$1:$D$2008,MATCH($E20,Договора!$B$1:$B$2008,0),MATCH(G$1,Договора!$B$1:$D$1,0)))","v":"2022-01-10"},"0001125",null,{"$f":"IF(C20=\"\",\"\",IF(COUNTIFS(Приложения!$C$1:C19,Приложения!C20,Приложения!$D$1:D19,Приложения!D20,Приложения!$E$1:E19,Приложения!E20,Приложения!$F$1:F19,Приложения!F20,Приложения!$G$1:G19,Приложения!G20,Приложения!$B$1:B19,Приложения!B20)=0,\"Оригинал\",IF(COUNTIFS(Приложения!$C$1:C19,Приложения!C20,Приложения!$D$1:D19,Приложения!D20,Приложения!$E$1:E19,Приложения!E20,Приложения!$F$1:F19,Приложения!F20,Приложения!$G$1:G19,Приложения!G20,Приложения!$B$1:B19,Приложения!B20)=1,\"Дубликат\",\"Проверить\")))","v":"Оригинал"}]
[null,null,null,null,null,{"$f":"IF(E21=\"\",\"\",INDEX(Договора!$B$1:$D$2008,MATCH($E21,Договора!$B$1:$B$2008,0),MATCH(F$1,Договора!$B$1:$D$1,0)))","v":""},{"$f":"IF(E21=\"\",\"\",INDEX(Договора!$B$1:$D$2008,MATCH($E21,Договора!$B$1:$B$2008,0),MATCH(G$1,Договора!$B$1:$D$1,0)))","v":""},null,null,{"$f":"IF(C21=\"\",\"\",IF(COUNTIFS(Приложения!$C$1:C20,Приложения!C21,Приложения!$D$1:D20,Приложения!D21,Приложения!$E$1:E20,Приложения!E21,Приложения!$F$1:F20,Приложения!F21,Приложения!$G$1:G20,Приложения!G21,Приложения!$B$1:B20,Приложения!B21)=0,\"Оригинал\",IF(COUNTIFS(Приложения!$C$1:C20,Приложения!C21,Приложения!$D$1:D20,Приложения!D21,Приложения!$E$1:E20,Приложения!E21,Приложения!$F$1:F20,Приложения!F21,Приложения!$G$1:G20,Приложения!G21,Приложения!$B$1:B20,Приложения!B21)=1,\"Дубликат\",\"Проверить\")))","v":""}]
[null,null,null,null,null,{"$f":"IF(E22=\"\",\"\",INDEX(Договора!$B$1:$D$2008,MATCH($E22,Договора!$B$1:$B$2008,0),MATCH(F$1,Договора!$B$1:$D$1,0)))","v":""},{"$f":"IF(E22=\"\",\"\",INDEX(Договора!$B$1:$D$2008,MATCH($E22,Договора!$B$1:$B$2008,0),MATCH(G$1,Договора!$B$1:$D$1,0)))","v":""},null,null,{"$f":"IF(C22=\"\",\"\",IF(COUNTIFS(Приложения!$C$1:C21,Приложения!C22,Приложения!$D$1:D21,Приложения!D22,Приложения!$E$1:E21,Приложения!E22,Приложения!$F$1:F21,Приложения!F22,Приложения!$G$1:G21,Приложения!G22,Приложения!$B$1:B21,Приложения!B22)=0,\"Оригинал\",IF(COUNTIFS(Приложения!$C$1:C21,Приложения!C22,Приложения!$D$1:D21,Приложения!D22,Приложения!$E$1:E21,Приложения!E22,Приложения!$F$1:F21,Приложения!F22,Приложения!$G$1:G21,Приложения!G22,Приложения!$B$1:B21,Приложения!B22)=1,\"Дубликат\",\"Проверить\")))","v":""}]
[null,null,null,null,null,{"$f":"IF(E23=\"\",\"\",INDEX(Договора!$B$1:$D$2008,MATCH($E23,Договора!$B$1:$B$2008,0),MATCH(F$1,Договора!$B$1:$D$1,0)))","v":""},{"$f":"IF(E23=\"\",\"\",INDEX(Договора!$B$1:$D$2008,MATCH($E23,Договора!$B$1:$B$2008,0),MATCH(G$1,Договора!$B$1:$D$1,0)))","v":""},null,null,{"$f":"IF(C23=\"\",\"\",IF(COUNTIFS(Приложения!$C$1:C22,Приложения!C23,Приложения!$D$1:D22,Приложения!D23,Приложения!$E$1:E22,Приложения!E23,Приложения!$F$1:F22,Приложения!F23,Приложения!$G$1:G22,Приложения!G23,Приложения!$B$1:B22,Приложения!B23)=0,\"Оригинал\",IF(COUNTIFS(Приложения!$C$1:C22,Приложения!C23,Приложения!$D$1:D22,Приложения!D23,Приложения!$E$1:E22,Приложения!E23,Приложения!$F$1:F22,Приложения!F23,Приложения!$G$1:G22,Приложения!G23,Приложения!$B$1:B22,Приложения!B23)=1,\"Дубликат\",\"Проверить\")))","v":""}]
[null,null,null,null,null,{"$f":"IF(E24=\"\",\"\",INDEX(Договора!$B$1:$D$2008,MATCH($E24,Договора!$B$1:$B$2008,0),MATCH(F$1,Договора!$B$1:$D$1,0)))","v":""},{"$f":"IF(E24=\"\",\"\",INDEX(Договора!$B$1:$D$2008,MATCH($E24,Договора!$B$1:$B$2008,0),MATCH(G$1,Договора!$B$1:$D$1,0)))","v":""},null,null,{"$f":"IF(C24=\"\",\"\",IF(COUNTIFS(Приложения!$C$1:C23,Приложения!C24,Приложения!$D$1:D23,Приложения!D24,Приложения!$E$1:E23,Приложения!E24,Приложения!$F$1:F23,Приложения!F24,Приложения!$G$1:G23,Приложения!G24,Приложения!$B$1:B23,Приложения!B24)=0,\"Оригинал\",IF(COUNTIFS(Приложения!$C$1:C23,Приложения!C24,Приложения!$D$1:D23,Приложения!D24,Приложения!$E$1:E23,Приложения!E24,Приложения!$F$1:F23,Приложения!F24,Приложения!$G$1:G23,Приложения!G24,Приложения!$B$1:B23,Приложения!B24)=1,\"Дубликат\",\"Проверить\")))","v":""}]

{"sheet":"Справочники","index":2,"n_rows":32,"n_cols":1,"rows_kept":32,"cut":false,"hidden":true,"merged":[]}
["Вид документа"]
["Акт"]
["Акт выполненных работ"]
["Акт о исполнении договора"]
["Акт приема-передачи"]
["Акт сдачи-приемки"]
["Ведомость"]
["Ведомость исполнения"]
["Ведомость носителя электронного"]
["Выберите тип документа"]
["Договор"]
["Доп.соглашение"]
["Заказ-наряд"]
["Заявка"]
["Заявление"]
["Накладная"]
["Отчет"]
["Письмо"]
["Приказ"]
["Приказ (доверенность)"]
["Приложение"]
["Протокол"]
["Протокол разногласий"]
["Протокол согласования разногласий"]
["Протокол согласования цены"]
["Протокол урегулирования разногласий"]
["Протокол цены"]
["Согласование"]
["Соглашение"]
["Соглашение о расторжении"]
["Спецификация"]
["Уведомление"]

{"sheet":"Проверка","index":3,"n_rows":12,"n_cols":7,"rows_kept":12,"cut":false,"hidden":false,"merged":[[11,0,32,6],[2,4,2,5],[3,0,3,2],[4,0,4,2],[5,0,5,2],[6,0,6,2],[8,0,8,2],[3,3,3,5],[4,3,4,5],[5,3,5,5],[6,3,6,5],[7,3,7,5],[8,3,8,5],[7,0,7,2]]}
["Вид документа","№ Документа","Дата документа","№ Договора","№ Согласование","Cтатус","Примечание"]
[]
["Проверка",{"$f":"IF($B$2=\"\",\"Отсутвует номер документа\",IF(COUNTIFS(Приложения[Вид документа],Проверка!$A$2,Приложения[№ документа],Проверка!$B$2,Приложения[№ договора],Проверка!$D$2,Приложения[Компания],Проверка!$B$4)>0,\"Проверить Приложения\",IF(COUNTIFS(Согласование!$B$2:$B$21,Проверка!$A$2,Согласование!$C$2:$C$21,Проверка!$B$2,Согласование!$E$2:$E$21,Проверка!$D$2,Согласование!$F$2:$F$21,Проверка!$B$4)>0,\"Проверить Согласование\",\"Оригинал\")))","v":"Отсутвует номер документа"},null,{"$f":"IF($D$2=\"\",\"Отсутвует номер договора\",INDEX(Договора!$B$1:$L$2008,MATCH($D$2,Договора!$B$1:$B$2008,0),MATCH(\"Местоположение\",Договора!$B$1:$L$1,0)))","v":"Отсутвует номер договора"},{"$f":"IF($E$2=\"\",\"Отсутвует № Согласования\",IF(COUNTIF(Приложения[№ Согласование],Проверка!$E$2)>0,\"Проверить Приложения\",IF(COUNTIF(Договора[№ Согласования],Проверка!$E$2)>0,\"Проверить Договора\",IF(COUNTIF(Согласование!H:H,Проверка!$E$2)>0,\"Проверить Согласование\",\"Оригинал\"))))","v":"Отсутвует № Согласования"}]
["Компания",null,null,{"$f":"IF($D$2=\"\",\"\",INDEX(Договора!$B$1:$D$2008,MATCH($D$2,Договора!$B$1:$B$2008,0),MATCH(\"Компания\",Договора!$B$1:$D$1,0)))","v":""}]
["Дата начала договора",null,null,{"$f":"IF($D$2=\"\",\"\",INDEX(Договора!$B$1:$D$2008,MATCH($D$2,Договора!$B$1:$B$2008,0),MATCH(\"Дата начала договора\",Договора!$B$1:$D$1,0)))","v":""}]
["Дата окончания договора",null,null,{"$f":"IF($D$2=\"\",\"\",INDEX(Договора!$B$1:$L$2008,MATCH($D$2,Договора!$B$1:$B$2008,0),MATCH(\"Дата окончания договора\",Договора!$B$1:$L$1,0)))","v":""}]
["Адрес",null,null,{"$f":"IF($D$2=\"\",\"\",INDEX(Договора!$B$1:$L$2008,MATCH($D$2,Договора!$B$1:$B$2008,0),MATCH(\"Адрес\",Договора!$B$1:$L$1,0)))","v":""}]
["Смена Юр. Реквизитов/Пролонгация",null,null,{"$f":"IF($D$2=\"\",\"\",IF((INDEX(Договора!$B$1:$L$2008,MATCH($D$2,Договора!$B$1:$B$2008,0),MATCH(\"Смена Юр. Реквизитов/Пролонгация\",Договора!$B$1:$L$1,0)))=0,\"Не производилась\",INDEX(Договора!$B$1:$L$2008,MATCH($D$2,Договора!$B$1:$B$2008,0),MATCH(\"Смена Юр. Реквизитов/Пролонгация\",Договора!$B$1:$L$1,0))))","v":""}]
["Условия оплаты",null,null,{"$f":"IF($D$2=\"\",\"\",INDEX(Договора!$B$1:$M$2008,MATCH($D$2,Договора!$B$1:$B$2008,0),MATCH(\"Условия оплаты\",Договора!$B$1:$M$1,0)))","v":""}]
[]
[]
["Добрый день, прошу помощи у экспертного сообщества, в решении(сокращении) цикличных идентичных каждодневных рабочих задач.\n\nДанная таблица представляет собой некий реестр документооборота, список документов, представленных в архив.\nТакже имеется лист Согласование, куда записываются согласуемые документы и результат проверки согласован/замечание+комментарий, в электронном виде, еще не подписанные. Эти документы проходят проверку на листе Проверка на актуальность реквизитов (номер договора, дата договора, действие договора, номер документа, дата документа)\n\nДействия:\n\nПриходит задача согласовать (проверить) документ:\n1.Открывается лист Проверка\n2.Данные вносятся, согласно наименованиям: вид документа, номер документа, дата документа, номер договора, номер согласования\n3.Происходит сверка по необходимым данным (договорам и приложениям)\n4.Открывается лист Согласование, и в любую первую сверху пустую вносятся данные (идентичные шагу 2) и результат проверки: согласовано/замечания-комментарий\nПроходит время, данный документ приносят в бумажном виде-Данные, идентичные пункту 2, вносятся в лист Приложения-Данные этого документа, стираются с листа Согласования\n                                                                                                                                                                                                                                                                                                                                                                                  Задача:\n1.Переносить заполняемые и проверенные данные с Листа Проверка на Лист Согласование(тест)(«тест» если обязательно менять внешний вид)\n2.Не переносить данные, если не заполнены все необходимые данные( вид документа, №документа, дата документа, №договора, № Согласования, Статус и комментарий.\n3.Переносить данные в первую свободную сверху строчку,  так как после поступления документы регестрируются в Листе Приложения и удаляются из Листа Согласования в хаотичном порядке\n4.Стирать данные после переноса\n\nЗаранее благодарю!"]

{"sheet":"Согласование","index":4,"n_rows":47,"n_cols":12,"rows_kept":47,"cut":false,"hidden":false,"merged":[]}
["№","Вид документа","№ документа","Дата документа","№ договора","Компания","Дата начала договора","Согласование №","Статус","Примечание","Проверка наличия документа","Проверка № согласования"]
[1,"Спецификация","185","2022-02-15","1а",{"$f":"IF(E2=\"\",\"\",INDEX(Договора!$B$1:$D$2008,MATCH($E2,Договора!$B$1:$B$2008,0),MATCH(F$1,Договора!$B$1:$D$1,0)))","v":"ООО  \"Первый\""},{"$f":"IF(E2=\"\",\"\",INDEX(Договора!$B$1:$D$2008,MATCH($E2,Договора!$B$1:$B$2008,0),MATCH(G$1,Договора!$B$1:$D$1,0)))","v":"2022-01-01"},"0001125","согласовано",null,{"$f":"IF(B2=\"\",\"\",IF(COUNTIFS(Приложения[Вид документа],Согласование!$B2,Приложения[№ документа],Согласование!$C2,Приложения[Дата документа],Согласование!$D2,Приложения[№ договора],Согласование!$E2,Приложения[Компания],Согласование!$F2,Приложения[Дата начала договора],Согласование!$G2)=1,\"Представлен\",IF(COUNTIFS(Приложения[Вид документа],Согласование!$B2,Приложения[№ документа],Согласование!$C2,Приложения[Дата документа],Согласование!$D2,Приложения[№ договора],Согласование!$E2,Приложения[Компания],Согласование!$F2,Приложения[Дата начала договора],Согласование!$G2)=0,\"В работе\",\"Проверить\")))","v":"В работе"},{"$f":"IF(B2=\"\",\"\",IF(COUNTIF(Приложения[№ Согласование],Согласование!$H2)=0,\"В работе\",IF(COUNTIF(Приложения[№ Согласование],Согласование!$H2)=1,\"Представлен\",\"Срочно проверить\")))","v":"Представлен"}]
[2,"Спецификация","18","2022-04-27","2б",{"$f":"IF(E3=\"\",\"\",INDEX(Договора!$B$1:$D$2008,MATCH($E3,Договора!$B$1:$B$2008,0),MATCH(F$1,Договора!$B$1:$D$1,0)))","v":"ООО \"Второй\""},{"$f":"IF(E3=\"\",\"\",INDEX(Договора!$B$1:$D$2008,MATCH($E3,Договора!$B$1:$B$2008,0),MATCH(G$1,Договора!$B$1:$D$1,0)))","v":"2022-01-02"},"0001126","согласовано",null,{"$f":"IF(B3=\"\",\"\",IF(COUNTIFS(Приложения[Вид документа],Согласование!$B3,Приложения[№ документа],Согласование!$C3,Приложения[Дата документа],Согласование!$D3,Приложения[№ договора],Согласование!$E3,Приложения[Компания],Согласование!$F3,Приложения[Дата начала договора],Согласование!$G3)=1,\"Представлен\",IF(COUNTIFS(Приложения[Вид документа],Согласование!$B3,Приложения[№ документа],Согласование!$C3,Приложения[Дата документа],Согласование!$D3,Приложения[№ договора],Согласование!$E3,Приложения[Компания],Согласование!$F3,Приложения[Дата начала договора],Согласование!$G3)=0,\"В работе\",\"Проверить\")))","v":"В работе"},{"$f":"IF(B3=\"\",\"\",IF(COUNTIF(Приложения[№ Согласование],Согласование!$H3)=0,\"В работе\",IF(COUNTIF(Приложения[№ Согласование],Согласование!$H3)=1,\"Представлен\",\"Срочно проверить\")))","v":"В работе"}]
[3,"Спецификация","62","2022-04-22","3в",{"$f":"IF(E4=\"\",\"\",INDEX(Договора!$B$1:$D$2008,MATCH($E4,Договора!$B$1:$B$2008,0),MATCH(F$1,Договора!$B$1:$D$1,0)))","v":"ООО \"Третий\""},{"$f":"IF(E4=\"\",\"\",INDEX(Договора!$B$1:$D$2008,MATCH($E4,Договора!$B$1:$B$2008,0),MATCH(G$1,Договора!$B$1:$D$1,0)))","v":"2022-01-03"},"0001127","согласовано",null,{"$f":"IF(B4=\"\",\"\",IF(COUNTIFS(Приложения[Вид документа],Согласование!$B4,Приложения[№ документа],Согласование!$C4,Приложения[Дата документа],Согласование!$D4,Приложения[№ договора],Согласование!$E4,Приложения[Компания],Согласование!$F4,Приложения[Дата начала договора],Согласование!$G4)=1,\"Представлен\",IF(COUNTIFS(Приложения[Вид документа],Согласование!$B4,Приложения[№ документа],Согласование!$C4,Приложения[Дата документа],Согласование!$D4,Приложения[№ договора],Согласование!$E4,Приложения[Компания],Согласование!$F4,Приложения[Дата начала договора],Согласование!$G4)=0,\"В работе\",\"Проверить\")))","v":"В работе"},{"$f":"IF(B4=\"\",\"\",IF(COUNTIF(Приложения[№ Согласование],Согласование!$H4)=0,\"В работе\",IF(COUNTIF(Приложения[№ Согласование],Согласование!$H4)=1,\"Представлен\",\"Срочно проверить\")))","v":"В работе"}]
[4,"Спецификация","22","2022-04-25","4г",{"$f":"IF(E5=\"\",\"\",INDEX(Договора!$B$1:$D$2008,MATCH($E5,Договора!$B$1:$B$2008,0),MATCH(F$1,Договора!$B$1:$D$1,0)))","v":"ЗАО \"Четвертый\""},{"$f":"IF(E5=\"\",\"\",INDEX(Договора!$B$1:$D$2008,MATCH($E5,Договора!$B$1:$B$2008,0),MATCH(G$1,Договора!$B$1:$D$1,0)))","v":"2022-01-04"},"0001128","согласовано",null,{"$f":"IF(B5=\"\",\"\",IF(COUNTIFS(Приложения[Вид документа],Согласование!$B5,Приложения[№ документа],Согласование!$C5,Приложения[Дата документа],Согласование!$D5,Приложения[№ договора],Согласование!$E5,Приложения[Компания],Согласование!$F5,Приложения[Дата начала договора],Согласование!$G5)=1,\"Представлен\",IF(COUNTIFS(Приложения[Вид документа],Согласование!$B5,Приложения[№ документа],Согласование!$C5,Приложения[Дата документа],Согласование!$D5,Приложения[№ договора],Согласование!$E5,Приложения[Компания],Согласование!$F5,Приложения[Дата начала договора],Согласование!$G5)=0,\"В работе\",\"Проверить\")))","v":"В работе"},{"$f":"IF(B5=\"\",\"\",IF(COUNTIF(Приложения[№ Согласование],Согласование!$H5)=0,\"В работе\",IF(COUNTIF(Приложения[№ Согласование],Согласование!$H5)=1,\"Представлен\",\"Срочно проверить\")))","v":"В работе"}]
[5,"Спецификация","24","2022-04-25","5д",{"$f":"IF(E6=\"\",\"\",INDEX(Договора!$B$1:$D$2008,MATCH($E6,Договора!$B$1:$B$2008,0),MATCH(F$1,Договора!$B$1:$D$1,0)))","v":"ООО \"Пятый\""},{"$f":"IF(E6=\"\",\"\",INDEX(Договора!$B$1:$D$2008,MATCH($E6,Договора!$B$1:$B$2008,0),MATCH(G$1,Договора!$B$1:$D$1,0)))","v":"2022-01-05"},"0001129","согласовано",null,{"$f":"IF(B6=\"\",\"\",IF(COUNTIFS(Приложения[Вид документа],Согласование!$B6,Приложения[№ документа],Согласование!$C6,Приложения[Дата документа],Согласование!$D6,Приложения[№ договора],Согласование!$E6,Приложения[Компания],Согласование!$F6,Приложения[Дата начала договора],Согласование!$G6)=1,\"Представлен\",IF(COUNTIFS(Приложения[Вид документа],Согласование!$B6,Приложения[№ документа],Согласование!$C6,Приложения[Дата документа],Согласование!$D6,Приложения[№ договора],Согласование!$E6,Приложения[Компания],Согласование!$F6,Приложения[Дата начала договора],Согласование!$G6)=0,\"В работе\",\"Проверить\")))","v":"В работе"},{"$f":"IF(B6=\"\",\"\",IF(COUNTIF(Приложения[№ Согласование],Согласование!$H6)=0,\"В работе\",IF(COUNTIF(Приложения[№ Согласование],Согласование!$H6)=1,\"Представлен\",\"Срочно проверить\")))","v":"В работе"}]
[6,"Ведомость исполнения","9","2022-04-26","6е",{"$f":"IF(E7=\"\",\"\",INDEX(Договора!$B$1:$D$2008,MATCH($E7,Договора!$B$1:$B$2008,0),MATCH(F$1,Договора!$B$1:$D$1,0)))","v":"ООО \"Шестой\""},{"$f":"IF(E7=\"\",\"\",INDEX(Договора!$B$1:$D$2008,MATCH($E7,Договора!$B$1:$B$2008,0),MATCH(G$1,Договора!$B$1:$D$1,0)))","v":"2022-01-06"},"0001130","согласовано",null,{"$f":"IF(B7=\"\",\"\",IF(COUNTIFS(Приложения[Вид документа],Согласование!$B7,Приложения[№ документа],Согласование!$C7,Приложения[Дата документа],Согласование!$D7,Приложения[№ договора],Согласование!$E7,Приложения[Компания],Согласование!$F7,Приложения[Дата начала договора],Согласование!$G7)=1,\"Представлен\",IF(COUNTIFS(Приложения[Вид документа],Согласование!$B7,Приложения[№ документа],Согласование!$C7,Приложения[Дата документа],Согласование!$D7,Приложения[№ договора],Согласование!$E7,Приложения[Компания],Согласование!$F7,Приложения[Дата начала договора],Согласование!$G7)=0,\"В работе\",\"Проверить\")))","v":"В работе"},{"$f":"IF(B7=\"\",\"\",IF(COUNTIF(Приложения[№ Согласование],Согласование!$H7)=0,\"В работе\",IF(COUNTIF(Приложения[№ Согласование],Согласование!$H7)=1,\"Представлен\",\"Срочно проверить\")))","v":"В работе"}]
[7,null,null,null,null,{"$f":"IF(E8=\"\",\"\",INDEX(Договора!$B$1:$D$2008,MATCH($E8,Договора!$B$1:$B$2008,0),MATCH(F$1,Договора!$B$1:$D$1,0)))","v":""},{"$f":"IF(E8=\"\",\"\",INDEX(Договора!$B$1:$D$2008,MATCH($E8,Договора!$B$1:$B$2008,0),MATCH(G$1,Договора!$B$1:$D$1,0)))","v":""},null,null,null,{"$f":"IF(B8=\"\",\"\",IF(COUNTIFS(Приложения[Вид документа],Согласование!$B8,Приложения[№ документа],Согласование!$C8,Приложения[Дата документа],Согласование!$D8,Приложения[№ договора],Согласование!$E8,Приложения[Компания],Согласование!$F8,Приложения[Дата начала договора],Согласование!$G8)=1,\"Представлен\",IF(COUNTIFS(Приложения[Вид документа],Согласование!$B8,Приложения[№ документа],Согласование!$C8,Приложения[Дата документа],Согласование!$D8,Приложения[№ договора],Согласование!$E8,Приложения[Компания],Согласование!$F8,Приложения[Дата начала договора],Согласование!$G8)=0,\"В работе\",\"Проверить\")))","v":""},{"$f":"IF(B8=\"\",\"\",IF(COUNTIF(Приложения[№ Согласование],Согласование!$H8)=0,\"В работе\",IF(COUNTIF(Приложения[№ Согласование],Согласование!$H8)=1,\"Представлен\",\"Срочно проверить\")))","v":""}]
[8,"Спецификация","3","2022-03-05","8з",{"$f":"IF(E9=\"\",\"\",INDEX(Договора!$B$1:$D$2008,MATCH($E9,Договора!$B$1:$B$2008,0),MATCH(F$1,Договора!$B$1:$D$1,0)))","v":"ООО \"Восьмойт\""},{"$f":"IF(E9=\"\",\"\",INDEX(Договора!$B$1:$D$2008,MATCH($E9,Договора!$B$1:$B$2008,0),MATCH(G$1,Договора!$B$1:$D$1,0)))","v":"2022-01-08"},"0001132","согласовано",null,{"$f":"IF(B9=\"\",\"\",IF(COUNTIFS(Приложения[Вид документа],Согласование!$B9,Приложения[№ документа],Согласование!$C9,Приложения[Дата документа],Согласование!$D9,Приложения[№ договора],Согласование!$E9,Приложения[Компания],Согласование!$F9,Приложения[Дата начала договора],Согласование!$G9)=1,\"Представлен\",IF(COUNTIFS(Приложения[Вид документа],Согласование!$B9,Приложения[№ документа],Согласование!$C9,Приложения[Дата документа],Согласование!$D9,Приложения[№ договора],Согласование!$E9,Приложения[Компания],Согласование!$F9,Приложения[Дата начала договора],Согласование!$G9)=0,\"В работе\",\"Проверить\")))","v":"В работе"},{"$f":"IF(B9=\"\",\"\",IF(COUNTIF(Приложения[№ Согласование],Согласование!$H9)=0,\"В работе\",IF(COUNTIF(Приложения[№ Согласование],Согласование!$H9)=1,\"Представлен\",\"Срочно проверить\")))","v":"В работе"}]
[9,"Спецификация","339","2022-02-17","9и",{"$f":"IF(E10=\"\",\"\",INDEX(Договора!$B$1:$D$2008,MATCH($E10,Договора!$B$1:$B$2008,0),MATCH(F$1,Договора!$B$1:$D$1,0)))","v":"ООО \"Девятый\""},{"$f":"IF(E10=\"\",\"\",INDEX(Договора!$B$1:$D$2008,MATCH($E10,Договора!$B$1:$B$2008,0),MATCH(G$1,Договора!$B$1:$D$1,0)))","v":"2022-01-09"},"0001133","Замечания","отсутствует документ",{"$f":"IF(B10=\"\",\"\",IF(COUNTIFS(Приложения[Вид документа],Согласование!$B10,Приложения[№ документа],Согласование!$C10,Приложения[Дата документа],Согласование!$D10,Приложения[№ договора],Согласование!$E10,Приложения[Компания],Согласование!$F10,Приложения[Дата начала договора],Согласование!$G10)=1,\"Представлен\",IF(COUNTIFS(Приложения[Вид документа],Согласование!$B10,Приложения[№ документа],Согласование!$C10,Приложения[Дата документа],Согласование!$D10,Приложения[№ договора],Согласование!$E10,Приложения[Компания],Согласование!$F10,Приложения[Дата начала договора],Согласование!$G10)=0,\"В работе\",\"Проверить\")))","v":"В работе"},{"$f":"IF(B10=\"\",\"\",IF(COUNTIF(Приложения[№ Согласование],Согласование!$H10)=0,\"В работе\",IF(COUNTIF(Приложения[№ Согласование],Согласование!$H10)=1,\"Представлен\",\"Срочно проверить\")))","v":"В работе"}]
[10,"Ведомость исполнения","84","2022-04-21","10/1923/о-2022",{"$f":"IF(E11=\"\",\"\",INDEX(Договора!$B$1:$D$2008,MATCH($E11,Договора!$B$1:$B$2008,0),MATCH(F$1,Договора!$B$1:$D$1,0)))","v":"ООО \"Десятый\""},{"$f":"IF(E11=\"\",\"\",INDEX(Договора!$B$1:$D$2008,MATCH($E11,Договора!$B$1:$B$2008,0),MATCH(G$1,Договора!$B$1:$D$1,0)))","v":"2022-01-10"},"0001134","согласовано",null,{"$f":"IF(B11=\"\",\"\",IF(COUNTIFS(Приложения[Вид документа],Согласование!$B11,Приложения[№ документа],Согласование!$C11,Приложения[Дата документа],Согласование!$D11,Приложения[№ договора],Согласование!$E11,Приложения[Компания],Согласование!$F11,Приложения[Дата начала договора],Согласование!$G11)=1,\"Представлен\",IF(COUNTIFS(Приложения[Вид документа],Согласование!$B11,Приложения[№ документа],Согласование!$C11,Приложения[Дата документа],Согласование!$D11,Приложения[№ договора],Согласование!$E11,Приложения[Компания],Согласование!$F11,Приложения[Дата начала договора],Согласование!$G11)=0,\"В работе\",\"Проверить\")))","v":"В работе"},{"$f":"IF(B11=\"\",\"\",IF(COUNTIF(Приложения[№ Согласование],Согласование!$H11)=0,\"В работе\",IF(COUNTIF(Приложения[№ Согласование],Согласование!$H11)=1,\"Представлен\",\"Срочно проверить\")))","v":"В работе"}]
[11,"Ведомость исполнения","82","2022-04-21","1а",{"$f":"IF(E12=\"\",\"\",INDEX(Договора!$B$1:$D$2008,MATCH($E12,Договора!$B$1:$B$2008,0),MATCH(F$1,Договора!$B$1:$D$1,0)))","v":"ООО  \"Первый\""},{"$f":"IF(E12=\"\",\"\",INDEX(Договора!$B$1:$D$2008,MATCH($E12,Договора!$B$1:$B$2008,0),MATCH(G$1,Договора!$B$1:$D$1,0)))","v":"2022-01-01"},"0001135","согласовано",null,{"$f":"IF(B12=\"\",\"\",IF(COUNTIFS(Приложения[Вид документа],Согласование!$B12,Приложения[№ документа],Согласование!$C12,Приложения[Дата документа],Согласование!$D12,Приложения[№ договора],Согласование!$E12,Приложения[Компания],Согласование!$F12,Приложения[Дата начала договора],Согласование!$G12)=1,\"Представлен\",IF(COUNTIFS(Приложения[Вид документа],Согласование!$B12,Приложения[№ документа],Согласование!$C12,Приложения[Дата документа],Согласование!$D12,Приложения[№ договора],Согласование!$E12,Приложения[Компания],Согласование!$F12,Приложения[Дата начала договора],Согласование!$G12)=0,\"В работе\",\"Проверить\")))","v":"В работе"},{"$f":"IF(B12=\"\",\"\",IF(COUNTIF(Приложения[№ Согласование],Согласование!$H12)=0,\"В работе\",IF(COUNTIF(Приложения[№ Согласование],Согласование!$H12)=1,\"Представлен\",\"Срочно проверить\")))","v":"В работе"}]
[12,"Спецификация",50,"2022-01-26","2б",{"$f":"IF(E13=\"\",\"\",INDEX(Договора!$B$1:$D$2008,MATCH($E13,Договора!$B$1:$B$2008,0),MATCH(F$1,Договора!$B$1:$D$1,0)))","v":"ООО \"Второй\""},{"$f":"IF(E13=\"\",\"\",INDEX(Договора!$B$1:$D$2008,MATCH($E13,Договора!$B$1:$B$2008,0),MATCH(G$1,Договора!$B$1:$D$1,0)))","v":"2022-01-02"},"0001136","Замечания","зао",{"$f":"IF(B13=\"\",\"\",IF(COUNTIFS(Приложения[Вид документа],Согласование!$B13,Приложения[№ документа],Согласование!$C13,Приложения[Дата документа],Согласование!$D13,Приложения[№ договора],Согласование!$E13,Приложения[Компания],Согласование!$F13,Приложения[Дата начала договора],Согласование!$G13)=1,\"Представлен\",IF(COUNTIFS(Приложения[Вид документа],Согласование!$B13,Приложения[№ документа],Согласование!$C13,Приложения[Дата документа],Согласование!$D13,Приложения[№ договора],Согласование!$E13,Приложения[Компания],Согласование!$F13,Приложения[Дата начала договора],Согласование!$G13)=0,\"В работе\",\"Проверить\")))","v":"В работе"},{"$f":"IF(B13=\"\",\"\",IF(COUNTIF(Приложения[№ Согласование],Согласование!$H13)=0,\"В работе\",IF(COUNTIF(Приложения[№ Согласование],Согласование!$H13)=1,\"Представлен\",\"Срочно проверить\")))","v":"В работе"}]
[13,"Спецификация",9505,"2022-02-15","3в",{"$f":"IF(E14=\"\",\"\",INDEX(Договора!$B$1:$D$2008,MATCH($E14,Договора!$B$1:$B$2008,0),MATCH(F$1,Договора!$B$1:$D$1,0)))","v":"ООО \"Третий\""},{"$f":"IF(E14=\"\",\"\",INDEX(Договора!$B$1:$D$2008,MATCH($E14,Договора!$B$1:$B$2008,0),MATCH(G$1,Договора!$B$1:$D$1,0)))","v":"2022-01-03"},"0001137","согласовано",null,{"$f":"IF(B14=\"\",\"\",IF(COUNTIFS(Приложения[Вид документа],Согласование!$B14,Приложения[№ документа],Согласование!$C14,Приложения[Дата документа],Согласование!$D14,Приложения[№ договора],Согласование!$E14,Приложения[Компания],Согласование!$F14,Приложения[Дата начала договора],Согласование!$G14)=1,\"Представлен\",IF(COUNTIFS(Приложения[Вид документа],Согласование!$B14,Приложения[№ документа],Согласование!$C14,Приложения[Дата документа],Согласование!$D14,Приложения[№ договора],Согласование!$E14,Приложения[Компания],Согласование!$F14,Приложения[Дата начала договора],Согласование!$G14)=0,\"В работе\",\"Проверить\")))","v":"В работе"},{"$f":"IF(B14=\"\",\"\",IF(COUNTIF(Приложения[№ Согласование],Согласование!$H14)=0,\"В работе\",IF(COUNTIF(Приложения[№ Согласование],Согласование!$H14)=1,\"Представлен\",\"Срочно проверить\")))","v":"В работе"}]
[14,"Ведомость исполнения","79","2022-04-21","4г",{"$f":"IF(E15=\"\",\"\",INDEX(Договора!$B$1:$D$2008,MATCH($E15,Договора!$B$1:$B$2008,0),MATCH(F$1,Договора!$B$1:$D$1,0)))","v":"ЗАО \"Четвертый\""},{"$f":"IF(E15=\"\",\"\",INDEX(Договора!$B$1:$D$2008,MATCH($E15,Договора!$B$1:$B$2008,0),MATCH(G$1,Договора!$B$1:$D$1,0)))","v":"2022-01-04"},"0001138","согласовано",null,{"$f":"IF(B15=\"\",\"\",IF(COUNTIFS(Приложения[Вид документа],Согласование!$B15,Приложения[№ документа],Согласование!$C15,Приложения[Дата документа],Согласование!$D15,Приложения[№ договора],Согласование!$E15,Приложения[Компания],Согласование!$F15,Приложения[Дата начала договора],Согласование!$G15)=1,\"Представлен\",IF(COUNTIFS(Приложения[Вид документа],Согласование!$B15,Приложения[№ документа],Согласование!$C15,Приложения[Дата документа],Согласование!$D15,Приложения[№ договора],Согласование!$E15,Приложения[Компания],Согласование!$F15,Приложения[Дата начала договора],Согласование!$G15)=0,\"В работе\",\"Проверить\")))","v":"В работе"},{"$f":"IF(B15=\"\",\"\",IF(COUNTIF(Приложения[№ Согласование],Согласование!$H15)=0,\"В работе\",IF(COUNTIF(Приложения[№ Согласование],Согласование!$H15)=1,\"Представлен\",\"Срочно проверить\")))","v":"В работе"}]
[15,"Спецификация","4","2022-04-28","5д",{"$f":"IF(E16=\"\",\"\",INDEX(Договора!$B$1:$D$2008,MATCH($E16,Договора!$B$1:$B$2008,0),MATCH(F$1,Договора!$B$1:$D$1,0)))","v":"ООО \"Пятый\""},{"$f":"IF(E16=\"\",\"\",INDEX(Договора!$B$1:$D$2008,MATCH($E16,Договора!$B$1:$B$2008,0),MATCH(G$1,Договора!$B$1:$D$1,0)))","v":"2022-01-05"},"0001139","согласовано",null,{"$f":"IF(B16=\"\",\"\",IF(COUNTIFS(Приложения[Вид документа],Согласование!$B16,Приложения[№ документа],Согласование!$C16,Приложения[Дата документа],Согласование!$D16,Приложения[№ договора],Согласование!$E16,Приложения[Компания],Согласование!$F16,Приложения[Дата начала договора],Согласование!$G16)=1,\"Представлен\",IF(COUNTIFS(Приложения[Вид документа],Согласование!$B16,Приложения[№ документа],Согласование!$C16,Приложения[Дата документа],Согласование!$D16,Приложения[№ договора],Согласование!$E16,Приложения[Компания],Согласование!$F16,Приложения[Дата начала договора],Согласование!$G16)=0,\"В работе\",\"Проверить\")))","v":"В работе"},{"$f":"IF(B16=\"\",\"\",IF(COUNTIF(Приложения[№ Согласование],Согласование!$H16)=0,\"В работе\",IF(COUNTIF(Приложения[№ Согласование],Согласование!$H16)=1,\"Представлен\",\"Срочно проверить\")))","v":"В работе"}]
[16,null,null,null,null,{"$f":"IF(E17=\"\",\"\",INDEX(Договора!$B$1:$D$2008,MATCH($E17,Договора!$B$1:$B$2008,0),MATCH(F$1,Договора!$B$1:$D$1,0)))","v":""},{"$f":"IF(E17=\"\",\"\",INDEX(Договора!$B$1:$D$2008,MATCH($E17,Договора!$B$1:$B$2008,0),MATCH(G$1,Договора!$B$1:$D$1,0)))","v":""},null,null,null,{"$f":"IF(B17=\"\",\"\",IF(COUNTIFS(Приложения[Вид документа],Согласование!$B17,Приложения[№ документа],Согласование!$C17,Приложения[Дата документа],Согласование!$D17,Приложения[№ договора],Согласование!$E17,Приложения[Компания],Согласование!$F17,Приложения[Дата начала договора],Согласование!$G17)=1,\"Представлен\",IF(COUNTIFS(Приложения[Вид документа],Согласование!$B17,Приложения[№ документа],Согласование!$C17,Приложения[Дата документа],Согласование!$D17,Приложения[№ договора],Согласование!$E17,Приложения[Компания],Согласование!$F17,Приложения[Дата начала договора],Согласование!$G17)=0,\"В работе\",\"Проверить\")))","v":""},{"$f":"IF(B17=\"\",\"\",IF(COUNTIF(Приложения[№ Согласование],Согласование!$H17)=0,\"В работе\",IF(COUNTIF(Приложения[№ Согласование],Согласование!$H17)=1,\"Представлен\",\"Срочно проверить\")))","v":""}]
[17,"Ведомость исполнения","76","2022-04-21","7ж",{"$f":"IF(E18=\"\",\"\",INDEX(Договора!$B$1:$D$2008,MATCH($E18,Договора!$B$1:$B$2008,0),MATCH(F$1,Договора!$B$1:$D$1,0)))","v":"ОАО \"Седьмой\""},{"$f":"IF(E18=\"\",\"\",INDEX(Договора!$B$1:$D$2008,MATCH($E18,Договора!$B$1:$B$2008,0),MATCH(G$1,Договора!$B$1:$D$1,0)))","v":"2022-01-07"},"0001141","согласовано",null,{"$f":"IF(B18=\"\",\"\",IF(COUNTIFS(Приложения[Вид документа],Согласование!$B18,Приложения[№ документа],Согласование!$C18,Приложения[Дата документа],Согласование!$D18,Приложения[№ договора],Согласование!$E18,Приложения[Компания],Согласование!$F18,Приложения[Дата начала договора],Согласование!$G18)=1,\"Представлен\",IF(COUNTIFS(Приложения[Вид документа],Согласование!$B18,Приложения[№ документа],Согласование!$C18,Приложения[Дата документа],Согласование!$D18,Приложения[№ договора],Согласование!$E18,Приложения[Компания],Согласование!$F18,Приложения[Дата начала договора],Согласование!$G18)=0,\"В работе\",\"Проверить\")))","v":"В работе"},{"$f":"IF(B18=\"\",\"\",IF(COUNTIF(Приложения[№ Согласование],Согласование!$H18)=0,\"В работе\",IF(COUNTIF(Приложения[№ Согласование],Согласование!$H18)=1,\"Представлен\",\"Срочно проверить\")))","v":"В работе"}]
[18,"Ведомость исполнения","8","2022-04-26","8з",{"$f":"IF(E19=\"\",\"\",INDEX(Договора!$B$1:$D$2008,MATCH($E19,Договора!$B$1:$B$2008,0),MATCH(F$1,Договора!$B$1:$D$1,0)))","v":"ООО \"Восьмойт\""},{"$f":"IF(E19=\"\",\"\",INDEX(Договора!$B$1:$D$2008,MATCH($E19,Договора!$B$1:$B$2008,0),MATCH(G$1,Договора!$B$1:$D$1,0)))","v":"2022-01-08"},"0001142","согласовано",null,{"$f":"IF(B19=\"\",\"\",IF(COUNTIFS(Приложения[Вид документа],Согласование!$B19,Приложения[№ документа],Согласование!$C19,Приложения[Дата документа],Согласование!$D19,Приложения[№ договора],Согласование!$E19,Приложения[Компания],Согласование!$F19,Приложения[Дата начала договора],Согласование!$G19)=1,\"Представлен\",IF(COUNTIFS(Приложения[Вид документа],Согласование!$B19,Приложения[№ документа],Согласование!$C19,Приложения[Дата документа],Согласование!$D19,Приложения[№ договора],Согласование!$E19,Приложения[Компания],Согласование!$F19,Приложения[Дата начала договора],Согласование!$G19)=0,\"В работе\",\"Проверить\")))","v":"В работе"},{"$f":"IF(B19=\"\",\"\",IF(COUNTIF(Приложения[№ Согласование],Согласование!$H19)=0,\"В работе\",IF(COUNTIF(Приложения[№ Согласование],Согласование!$H19)=1,\"Представлен\",\"Срочно проверить\")))","v":"В работе"}]
[19,"Ведомость исполнения","2","2022-04-26","9и",{"$f":"IF(E20=\"\",\"\",INDEX(Договора!$B$1:$D$2008,MATCH($E20,Договора!$B$1:$B$2008,0),MATCH(F$1,Договора!$B$1:$D$1,0)))","v":"ООО \"Девятый\""},{"$f":"IF(E20=\"\",\"\",INDEX(Договора!$B$1:$D$2008,MATCH($E20,Договора!$B$1:$B$2008,0),MATCH(G$1,Договора!$B$1:$D$1,0)))","v":"2022-01-09"},"0001143","согласовано",null,{"$f":"IF(B20=\"\",\"\",IF(COUNTIFS(Приложения[Вид документа],Согласование!$B20,Приложения[№ документа],Согласование!$C20,Приложения[Дата документа],Согласование!$D20,Приложения[№ договора],Согласование!$E20,Приложения[Компания],Согласование!$F20,Приложения[Дата начала договора],Согласование!$G20)=1,\"Представлен\",IF(COUNTIFS(Приложения[Вид документа],Согласование!$B20,Приложения[№ документа],Согласование!$C20,Приложения[Дата документа],Согласование!$D20,Приложения[№ договора],Согласование!$E20,Приложения[Компания],Согласование!$F20,Приложения[Дата начала договора],Согласование!$G20)=0,\"В работе\",\"Проверить\")))","v":"В работе"},{"$f":"IF(B20=\"\",\"\",IF(COUNTIF(Приложения[№ Согласование],Согласование!$H20)=0,\"В работе\",IF(COUNTIF(Приложения[№ Согласование],Согласование!$H20)=1,\"Представлен\",\"Срочно проверить\")))","v":"В работе"}]
[20,"Ведомость исполнения","1","2022-11-21","1а",{"$f":"IF(E21=\"\",\"\",INDEX(Договора!$B$1:$D$2008,MATCH($E21,Договора!$B$1:$B$2008,0),MATCH(F$1,Договора!$B$1:$D$1,0)))","v":"ООО  \"Первый\""},{"$f":"IF(E21=\"\",\"\",INDEX(Договора!$B$1:$D$2008,MATCH($E21,Договора!$B$1:$B$2008,0),MATCH(G$1,Договора!$B$1:$D$1,0)))","v":"2022-01-01"},"0001125","согласовано",null,{"$f":"IF(B21=\"\",\"\",IF(COUNTIFS(Приложения[Вид документа],Согласование!$B21,Приложения[№ документа],Согласование!$C21,Приложения[Дата документа],Согласование!$D21,Приложения[№ договора],Согласование!$E21,Приложения[Компания],Согласование!$F21,Приложения[Дата начала договора],Согласование!$G21)=1,\"Представлен\",IF(COUNTIFS(Приложения[Вид документа],Согласование!$B21,Приложения[№ документа],Согласование!$C21,Приложения[Дата документа],Согласование!$D21,Приложения[№ договора],Согласование!$E21,Приложения[Компания],Согласование!$F21,Приложения[Дата начала договора],Согласование!$G21)=0,\"В работе\",\"Проверить\")))","v":"В работе"},{"$f":"IF(B21=\"\",\"\",IF(COUNTIF(Приложения[№ Согласование],Согласование!$H21)=0,\"В работе\",IF(COUNTIF(Приложения[№ Согласование],Согласование!$H21)=1,\"Представлен\",\"Срочно проверить\")))","v":"Представлен"}]
[]
[null,null,null,null,null,{"$f":"IF(E23=\"\",\"\",INDEX(Договора!$B$1:$D$2008,MATCH($E23,Договора!$B$1:$B$2008,0),MATCH(F$1,Договора!$B$1:$D$1,0)))","v":""},{"$f":"IF(E23=\"\",\"\",INDEX(Договора!$B$1:$D$2008,MATCH($E23,Договора!$B$1:$B$2008,0),MATCH(G$1,Договора!$B$1:$D$1,0)))","v":""},null,null,null,{"$f":"IF(B23=\"\",\"\",IF(COUNTIFS(Приложения[Вид документа],Согласование!$B23,Приложения[№ документа],Согласование!$C23,Приложения[Дата документа],Согласование!$D23,Приложения[№ договора],Согласование!$E23,Приложения[Компания],Согласование!$F23,Приложения[Дата начала договора],Согласование!$G23)=1,\"Представлен\",IF(COUNTIFS(Приложения[Вид документа],Согласование!$B23,Приложения[№ документа],Согласование!$C23,Приложения[Дата документа],Согласование!$D23,Приложения[№ договора],Согласование!$E23,Приложения[Компания],Согласование!$F23,Приложения[Дата начала договора],Согласование!$G23)=0,\"В работе\",\"Проверить\")))","v":""},{"$f":"IF(B23=\"\",\"\",IF(COUNTIF(Приложения[№ Согласование],Согласование!$H23)=0,\"В работе\",IF(COUNTIF(Приложения[№ Согласование],Согласование!$H23)=1,\"Представлен\",\"Срочно проверить\")))","v":""}]
[null,null,null,null,null,{"$f":"IF(E24=\"\",\"\",INDEX(Договора!$B$1:$D$2008,MATCH($E24,Договора!$B$1:$B$2008,0),MATCH(F$1,Договора!$B$1:$D$1,0)))","v":""},{"$f":"IF(E24=\"\",\"\",INDEX(Договора!$B$1:$D$2008,MATCH($E24,Договора!$B$1:$B$2008,0),MATCH(G$1,Договора!$B$1:$D$1,0)))","v":""},null,null,null,{"$f":"IF(B24=\"\",\"\",IF(COUNTIFS(Приложения[Вид документа],Согласование!$B24,Приложения[№ документа],Согласование!$C24,Приложения[Дата документа],Согласование!$D24,Приложения[№ договора],Согласование!$E24,Приложения[Компания],Согласование!$F24,Приложения[Дата начала договора],Согласование!$G24)=1,\"Представлен\",IF(COUNTIFS(Приложения[Вид документа],Согласование!$B24,Приложения[№ документа],Согласование!$C24,Приложения[Дата документа],Согласование!$D24,Приложения[№ договора],Согласование!$E24,Приложения[Компания],Согласование!$F24,Приложения[Дата начала договора],Согласование!$G24)=0,\"В работе\",\"Проверить\")))","v":""},{"$f":"IF(B24=\"\",\"\",IF(COUNTIF(Приложения[№ Согласование],Согласование!$H24)=0,\"В работе\",IF(COUNTIF(Приложения[№ Согласование],Согласование!$H24)=1,\"Представлен\",\"Срочно проверить\")))","v":""}]
[null,null,null,null,null,{"$f":"IF(E25=\"\",\"\",INDEX(Договора!$B$1:$D$2008,MATCH($E25,Договора!$B$1:$B$2008,0),MATCH(F$1,Договора!$B$1:$D$1,0)))","v":""},{"$f":"IF(E25=\"\",\"\",INDEX(Договора!$B$1:$D$2008,MATCH($E25,Договора!$B$1:$B$2008,0),MATCH(G$1,Договора!$B$1:$D$1,0)))","v":""},null,null,null,{"$f":"IF(B25=\"\",\"\",IF(COUNTIFS(Приложения[Вид документа],Согласование!$B25,Приложения[№ документа],Согласование!$C25,Приложения[Дата документа],Согласование!$D25,Приложения[№ договора],Согласование!$E25,Приложения[Компания],Согласование!$F25,Приложения[Дата начала договора],Согласование!$G25)=1,\"Представлен\",IF(COUNTIFS(Приложения[Вид документа],Согласование!$B25,Приложения[№ документа],Согласование!$C25,Приложения[Дата документа],Согласование!$D25,Приложения[№ договора],Согласование!$E25,Приложения[Компания],Согласование!$F25,Приложения[Дата начала договора],Согласование!$G25)=0,\"В работе\",\"Проверить\")))","v":""},{"$f":"IF(B25=\"\",\"\",IF(COUNTIF(Приложения[№ Согласование],Согласование!$H25)=0,\"В работе\",IF(COUNTIF(Приложения[№ Согласование],Согласование!$H25)=1,\"Представлен\",\"Срочно проверить\")))","v":""}]
[null,null,null,null,null,{"$f":"IF(E26=\"\",\"\",INDEX(Договора!$B$1:$D$2008,MATCH($E26,Договора!$B$1:$B$2008,0),MATCH(F$1,Договора!$B$1:$D$1,0)))","v":""},{"$f":"IF(E26=\"\",\"\",INDEX(Договора!$B$1:$D$2008,MATCH($E26,Договора!$B$1:$B$2008,0),MATCH(G$1,Договора!$B$1:$D$1,0)))","v":""},null,null,null,{"$f":"IF(B26=\"\",\"\",IF(COUNTIFS(Приложения[Вид документа],Согласование!$B26,Приложения[№ документа],Согласование!$C26,Приложения[Дата документа],Согласование!$D26,Приложения[№ договора],Согласование!$E26,Приложения[Компания],Согласование!$F26,Приложения[Дата начала договора],Согласование!$G26)=1,\"Представлен\",IF(COUNTIFS(Приложения[Вид документа],Согласование!$B26,Приложения[№ документа],Согласование!$C26,Приложения[Дата документа],Согласование!$D26,Приложения[№ договора],Согласование!$E26,Приложения[Компания],Согласование!$F26,Приложения[Дата начала договора],Согласование!$G26)=0,\"В работе\",\"Проверить\")))","v":""},{"$f":"IF(B26=\"\",\"\",IF(COUNTIF(Приложения[№ Согласование],Согласование!$H26)=0,\"В работе\",IF(COUNTIF(Приложения[№ Согласование],Согласование!$H26)=1,\"Представлен\",\"Срочно проверить\")))","v":""}]
[null,null,null,null,null,{"$f":"IF(E27=\"\",\"\",INDEX(Договора!$B$1:$D$2008,MATCH($E27,Договора!$B$1:$B$2008,0),MATCH(F$1,Договора!$B$1:$D$1,0)))","v":""},{"$f":"IF(E27=\"\",\"\",INDEX(Договора!$B$1:$D$2008,MATCH($E27,Договора!$B$1:$B$2008,0),MATCH(G$1,Договора!$B$1:$D$1,0)))","v":""},null,null,null,{"$f":"IF(B27=\"\",\"\",IF(COUNTIFS(Приложения[Вид документа],Согласование!$B27,Приложения[№ документа],Согласование!$C27,Приложения[Дата документа],Согласование!$D27,Приложения[№ договора],Согласование!$E27,Приложения[Компания],Согласование!$F27,Приложения[Дата начала договора],Согласование!$G27)=1,\"Представлен\",IF(COUNTIFS(Приложения[Вид документа],Согласование!$B27,Приложения[№ документа],Согласование!$C27,Приложения[Дата документа],Согласование!$D27,Приложения[№ договора],Согласование!$E27,Приложения[Компания],Согласование!$F27,Приложения[Дата начала договора],Согласование!$G27)=0,\"В работе\",\"Проверить\")))","v":""},{"$f":"IF(B27=\"\",\"\",IF(COUNTIF(Приложения[№ Согласование],Согласование!$H27)=0,\"В работе\",IF(COUNTIF(Приложения[№ Согласование],Согласование!$H27)=1,\"Представлен\",\"Срочно проверить\")))","v":""}]
[null,null,null,null,null,{"$f":"IF(E28=\"\",\"\",INDEX(Договора!$B$1:$D$2008,MATCH($E28,Договора!$B$1:$B$2008,0),MATCH(F$1,Договора!$B$1:$D$1,0)))","v":""},{"$f":"IF(E28=\"\",\"\",INDEX(Договора!$B$1:$D$2008,MATCH($E28,Договора!$B$1:$B$2008,0),MATCH(G$1,Договора!$B$1:$D$1,0)))","v":""},null,null,null,{"$f":"IF(B28=\"\",\"\",IF(COUNTIFS(Приложения[Вид документа],Согласование!$B28,Приложения[№ документа],Согласование!$C28,Приложения[Дата документа],Согласование!$D28,Приложения[№ договора],Согласование!$E28,Приложения[Компания],Согласование!$F28,Приложения[Дата начала договора],Согласование!$G28)=1,\"Представлен\",IF(COUNTIFS(Приложения[Вид документа],Согласование!$B28,Приложения[№ документа],Согласование!$C28,Приложения[Дата документа],Согласование!$D28,Приложения[№ договора],Согласование!$E28,Приложения[Компания],Согласование!$F28,Приложения[Дата начала договора],Согласование!$G28)=0,\"В работе\",\"Проверить\")))","v":""},{"$f":"IF(B28=\"\",\"\",IF(COUNTIF(Приложения[№ Согласование],Согласование!$H28)=0,\"В работе\",IF(COUNTIF(Приложения[№ Согласование],Согласование!$H28)=1,\"Представлен\",\"Срочно проверить\")))","v":""}]
[null,null,null,null,null,{"$f":"IF(E29=\"\",\"\",INDEX(Договора!$B$1:$D$2008,MATCH($E29,Договора!$B$1:$B$2008,0),MATCH(F$1,Договора!$B$1:$D$1,0)))","v":""},{"$f":"IF(E29=\"\",\"\",INDEX(Договора!$B$1:$D$2008,MATCH($E29,Договора!$B$1:$B$2008,0),MATCH(G$1,Договора!$B$1:$D$1,0)))","v":""},null,null,null,{"$f":"IF(B29=\"\",\"\",IF(COUNTIFS(Приложения[Вид документа],Согласование!$B29,Приложения[№ документа],Согласование!$C29,Приложения[Дата документа],Согласование!$D29,Приложения[№ договора],Согласование!$E29,Приложения[Компания],Согласование!$F29,Приложения[Дата начала договора],Согласование!$G29)=1,\"Представлен\",IF(COUNTIFS(Приложения[Вид документа],Согласование!$B29,Приложения[№ документа],Согласование!$C29,Приложения[Дата документа],Согласование!$D29,Приложения[№ договора],Согласование!$E29,Приложения[Компания],Согласование!$F29,Приложения[Дата начала договора],Согласование!$G29)=0,\"В работе\",\"Проверить\")))","v":""},{"$f":"IF(B29=\"\",\"\",IF(COUNTIF(Приложения[№ Согласование],Согласование!$H29)=0,\"В работе\",IF(COUNTIF(Приложения[№ Согласование],Согласование!$H29)=1,\"Представлен\",\"Срочно проверить\")))","v":""}]
[null,null,null,null,null,{"$f":"IF(E30=\"\",\"\",INDEX(Договора!$B$1:$D$2008,MATCH($E30,Договора!$B$1:$B$2008,0),MATCH(F$1,Договора!$B$1:$D$1,0)))","v":""},{"$f":"IF(E30=\"\",\"\",INDEX(Договора!$B$1:$D$2008,MATCH($E30,Договора!$B$1:$B$2008,0),MATCH(G$1,Договора!$B$1:$D$1,0)))","v":""},null,null,null,{"$f":"IF(B30=\"\",\"\",IF(COUNTIFS(Приложения[Вид документа],Согласование!$B30,Приложения[№ документа],Согласование!$C30,Приложения[Дата документа],Согласование!$D30,Приложения[№ договора],Согласование!$E30,Приложения[Компания],Согласование!$F30,Приложения[Дата начала договора],Согласование!$G30)=1,\"Представлен\",IF(COUNTIFS(Приложения[Вид документа],Согласование!$B30,Приложения[№ документа],Согласование!$C30,Приложения[Дата документа],Согласование!$D30,Приложения[№ договора],Согласование!$E30,Приложения[Компания],Согласование!$F30,Приложения[Дата начала договора],Согласование!$G30)=0,\"В работе\",\"Проверить\")))","v":""},{"$f":"IF(B30=\"\",\"\",IF(COUNTIF(Приложения[№ Согласование],Согласование!$H30)=0,\"В работе\",IF(COUNTIF(Приложения[№ Согласование],Согласование!$H30)=1,\"Представлен\",\"Срочно проверить\")))","v":""}]
[null,null,null,null,null,{"$f":"IF(E31=\"\",\"\",INDEX(Договора!$B$1:$D$2008,MATCH($E31,Договора!$B$1:$B$2008,0),MATCH(F$1,Договора!$B$1:$D$1,0)))","v":""},{"$f":"IF(E31=\"\",\"\",INDEX(Договора!$B$1:$D$2008,MATCH($E31,Договора!$B$1:$B$2008,0),MATCH(G$1,Договора!$B$1:$D$1,0)))","v":""},null,null,null,{"$f":"IF(B31=\"\",\"\",IF(COUNTIFS(Приложения[Вид документа],Согласование!$B31,Приложения[№ документа],Согласование!$C31,Приложения[Дата документа],Согласование!$D31,Приложения[№ договора],Согласование!$E31,Приложения[Компания],Согласование!$F31,Приложения[Дата начала договора],Согласование!$G31)=1,\"Представлен\",IF(COUNTIFS(Приложения[Вид документа],Согласование!$B31,Приложения[№ документа],Согласование!$C31,Приложения[Дата документа],Согласование!$D31,Приложения[№ договора],Согласование!$E31,Приложения[Компания],Согласование!$F31,Приложения[Дата начала договора],Согласование!$G31)=0,\"В работе\",\"Проверить\")))","v":""},{"$f":"IF(B31=\"\",\"\",IF(COUNTIF(Приложения[№ Согласование],Согласование!$H31)=0,\"В работе\",IF(COUNTIF(Приложения[№ Согласование],Согласование!$H31)=1,\"Представлен\",\"Срочно проверить\")))","v":""}]
[null,null,null,null,null,{"$f":"IF(E32=\"\",\"\",INDEX(Договора!$B$1:$D$2008,MATCH($E32,Договора!$B$1:$B$2008,0),MATCH(F$1,Договора!$B$1:$D$1,0)))","v":""},{"$f":"IF(E32=\"\",\"\",INDEX(Договора!$B$1:$D$2008,MATCH($E32,Договора!$B$1:$B$2008,0),MATCH(G$1,Договора!$B$1:$D$1,0)))","v":""},null,null,null,{"$f":"IF(B32=\"\",\"\",IF(COUNTIFS(Приложения[Вид документа],Согласование!$B32,Приложения[№ документа],Согласование!$C32,Приложения[Дата документа],Согласование!$D32,Приложения[№ договора],Согласование!$E32,Приложения[Компания],Согласование!$F32,Приложения[Дата начала договора],Согласование!$G32)=1,\"Представлен\",IF(COUNTIFS(Приложения[Вид документа],Согласование!$B32,Приложения[№ документа],Согласование!$C32,Приложения[Дата документа],Согласование!$D32,Приложения[№ договора],Согласование!$E32,Приложения[Компания],Согласование!$F32,Приложения[Дата начала договора],Согласование!$G32)=0,\"В работе\",\"Проверить\")))","v":""},{"$f":"IF(B32=\"\",\"\",IF(COUNTIF(Приложения[№ Согласование],Согласование!$H32)=0,\"В работе\",IF(COUNTIF(Приложения[№ Согласование],Согласование!$H32)=1,\"Представлен\",\"Срочно проверить\")))","v":""}]
[null,null,null,null,null,{"$f":"IF(E33=\"\",\"\",INDEX(Договора!$B$1:$D$2008,MATCH($E33,Договора!$B$1:$B$2008,0),MATCH(F$1,Договора!$B$1:$D$1,0)))","v":""},{"$f":"IF(E33=\"\",\"\",INDEX(Договора!$B$1:$D$2008,MATCH($E33,Договора!$B$1:$B$2008,0),MATCH(G$1,Договора!$B$1:$D$1,0)))","v":""},null,null,null,{"$f":"IF(B33=\"\",\"\",IF(COUNTIFS(Приложения[Вид документа],Согласование!$B33,Приложения[№ документа],Согласование!$C33,Приложения[Дата документа],Согласование!$D33,Приложения[№ договора],Согласование!$E33,Приложения[Компания],Согласование!$F33,Приложения[Дата начала договора],Согласование!$G33)=1,\"Представлен\",IF(COUNTIFS(Приложения[Вид документа],Согласование!$B33,Приложения[№ документа],Согласование!$C33,Приложения[Дата документа],Согласование!$D33,Приложения[№ договора],Согласование!$E33,Приложения[Компания],Согласование!$F33,Приложения[Дата начала договора],Согласование!$G33)=0,\"В работе\",\"Проверить\")))","v":""},{"$f":"IF(B33=\"\",\"\",IF(COUNTIF(Приложения[№ Согласование],Согласование!$H33)=0,\"В работе\",IF(COUNTIF(Приложения[№ Согласование],Согласование!$H33)=1,\"Представлен\",\"Срочно проверить\")))","v":""}]
[null,null,null,null,null,{"$f":"IF(E34=\"\",\"\",INDEX(Договора!$B$1:$D$2008,MATCH($E34,Договора!$B$1:$B$2008,0),MATCH(F$1,Договора!$B$1:$D$1,0)))","v":""},{"$f":"IF(E34=\"\",\"\",INDEX(Договора!$B$1:$D$2008,MATCH($E34,Договора!$B$1:$B$2008,0),MATCH(G$1,Договора!$B$1:$D$1,0)))","v":""},null,null,null,{"$f":"IF(B34=\"\",\"\",IF(COUNTIFS(Приложения[Вид документа],Согласование!$B34,Приложения[№ документа],Согласование!$C34,Приложения[Дата документа],Согласование!$D34,Приложения[№ договора],Согласование!$E34,Приложения[Компания],Согласование!$F34,Приложения[Дата начала договора],Согласование!$G34)=1,\"Представлен\",IF(COUNTIFS(Приложения[Вид документа],Согласование!$B34,Приложения[№ документа],Согласование!$C34,Приложения[Дата документа],Согласование!$D34,Приложения[№ договора],Согласование!$E34,Приложения[Компания],Согласование!$F34,Приложения[Дата начала договора],Согласование!$G34)=0,\"В работе\",\"Проверить\")))","v":""},{"$f":"IF(B34=\"\",\"\",IF(COUNTIF(Приложения[№ Согласование],Согласование!$H34)=0,\"В работе\",IF(COUNTIF(Приложения[№ Согласование],Согласование!$H34)=1,\"Представлен\",\"Срочно проверить\")))","v":""}]
[null,null,null,null,null,{"$f":"IF(E35=\"\",\"\",INDEX(Договора!$B$1:$D$2008,MATCH($E35,Договора!$B$1:$B$2008,0),MATCH(F$1,Договора!$B$1:$D$1,0)))","v":""},{"$f":"IF(E35=\"\",\"\",INDEX(Договора!$B$1:$D$2008,MATCH($E35,Договора!$B$1:$B$2008,0),MATCH(G$1,Договора!$B$1:$D$1,0)))","v":""},null,null,null,{"$f":"IF(B35=\"\",\"\",IF(COUNTIFS(Приложения[Вид документа],Согласование!$B35,Приложения[№ документа],Согласование!$C35,Приложения[Дата документа],Согласование!$D35,Приложения[№ договора],Согласование!$E35,Приложения[Компания],Согласование!$F35,Приложения[Дата начала договора],Согласование!$G35)=1,\"Представлен\",IF(COUNTIFS(Приложения[Вид документа],Согласование!$B35,Приложения[№ документа],Согласование!$C35,Приложения[Дата документа],Согласование!$D35,Приложения[№ договора],Согласование!$E35,Приложения[Компания],Согласование!$F35,Приложения[Дата начала договора],Согласование!$G35)=0,\"В работе\",\"Проверить\")))","v":""},{"$f":"IF(B35=\"\",\"\",IF(COUNTIF(Приложения[№ Согласование],Согласование!$H35)=0,\"В работе\",IF(COUNTIF(Приложения[№ Согласование],Согласование!$H35)=1,\"Представлен\",\"Срочно проверить\")))","v":""}]
[null,null,null,null,null,{"$f":"IF(E36=\"\",\"\",INDEX(Договора!$B$1:$D$2008,MATCH($E36,Договора!$B$1:$B$2008,0),MATCH(F$1,Договора!$B$1:$D$1,0)))","v":""},{"$f":"IF(E36=\"\",\"\",INDEX(Договора!$B$1:$D$2008,MATCH($E36,Договора!$B$1:$B$2008,0),MATCH(G$1,Договора!$B$1:$D$1,0)))","v":""},null,null,null,{"$f":"IF(B36=\"\",\"\",IF(COUNTIFS(Приложения[Вид документа],Согласование!$B36,Приложения[№ документа],Согласование!$C36,Приложения[Дата документа],Согласование!$D36,Приложения[№ договора],Согласование!$E36,Приложения[Компания],Согласование!$F36,Приложения[Дата начала договора],Согласование!$G36)=1,\"Представлен\",IF(COUNTIFS(Приложения[Вид документа],Согласование!$B36,Приложения[№ документа],Согласование!$C36,Приложения[Дата документа],Согласование!$D36,Приложения[№ договора],Согласование!$E36,Приложения[Компания],Согласование!$F36,Приложения[Дата начала договора],Согласование!$G36)=0,\"В работе\",\"Проверить\")))","v":""},{"$f":"IF(B36=\"\",\"\",IF(COUNTIF(Приложения[№ Согласование],Согласование!$H36)=0,\"В работе\",IF(COUNTIF(Приложения[№ Согласование],Согласование!$H36)=1,\"Представлен\",\"Срочно проверить\")))","v":""}]
[null,null,null,null,null,{"$f":"IF(E37=\"\",\"\",INDEX(Договора!$B$1:$D$2008,MATCH($E37,Договора!$B$1:$B$2008,0),MATCH(F$1,Договора!$B$1:$D$1,0)))","v":""},{"$f":"IF(E37=\"\",\"\",INDEX(Договора!$B$1:$D$2008,MATCH($E37,Договора!$B$1:$B$2008,0),MATCH(G$1,Договора!$B$1:$D$1,0)))","v":""},null,null,null,{"$f":"IF(B37=\"\",\"\",IF(COUNTIFS(Приложения[Вид документа],Согласование!$B37,Приложения[№ документа],Согласование!$C37,Приложения[Дата документа],Согласование!$D37,Приложения[№ договора],Согласование!$E37,Приложения[Компания],Согласование!$F37,Приложения[Дата начала договора],Согласование!$G37)=1,\"Представлен\",IF(COUNTIFS(Приложения[Вид документа],Согласование!$B37,Приложения[№ документа],Согласование!$C37,Приложения[Дата документа],Согласование!$D37,Приложения[№ договора],Согласование!$E37,Приложения[Компания],Согласование!$F37,Приложения[Дата начала договора],Согласование!$G37)=0,\"В работе\",\"Проверить\")))","v":""},{"$f":"IF(B37=\"\",\"\",IF(COUNTIF(Приложения[№ Согласование],Согласование!$H37)=0,\"В работе\",IF(COUNTIF(Приложения[№ Согласование],Согласование!$H37)=1,\"Представлен\",\"Срочно проверить\")))","v":""}]
[null,null,null,null,null,{"$f":"IF(E38=\"\",\"\",INDEX(Договора!$B$1:$D$2008,MATCH($E38,Договора!$B$1:$B$2008,0),MATCH(F$1,Договора!$B$1:$D$1,0)))","v":""},{"$f":"IF(E38=\"\",\"\",INDEX(Договора!$B$1:$D$2008,MATCH($E38,Договора!$B$1:$B$2008,0),MATCH(G$1,Договора!$B$1:$D$1,0)))","v":""},null,null,null,{"$f":"IF(B38=\"\",\"\",IF(COUNTIFS(Приложения[Вид документа],Согласование!$B38,Приложения[№ документа],Согласование!$C38,Приложения[Дата документа],Согласование!$D38,Приложения[№ договора],Согласование!$E38,Приложения[Компания],Согласование!$F38,Приложения[Дата начала договора],Согласование!$G38)=1,\"Представлен\",IF(COUNTIFS(Приложения[Вид документа],Согласование!$B38,Приложения[№ документа],Согласование!$C38,Приложения[Дата документа],Согласование!$D38,Приложения[№ договора],Согласование!$E38,Приложения[Компания],Согласование!$F38,Приложения[Дата начала договора],Согласование!$G38)=0,\"В работе\",\"Проверить\")))","v":""},{"$f":"IF(B38=\"\",\"\",IF(COUNTIF(Приложения[№ Согласование],Согласование!$H38)=0,\"В работе\",IF(COUNTIF(Приложения[№ Согласование],Согласование!$H38)=1,\"Представлен\",\"Срочно проверить\")))","v":""}]
[null,null,null,null,null,{"$f":"IF(E39=\"\",\"\",INDEX(Договора!$B$1:$D$2008,MATCH($E39,Договора!$B$1:$B$2008,0),MATCH(F$1,Договора!$B$1:$D$1,0)))","v":""},{"$f":"IF(E39=\"\",\"\",INDEX(Договора!$B$1:$D$2008,MATCH($E39,Договора!$B$1:$B$2008,0),MATCH(G$1,Договора!$B$1:$D$1,0)))","v":""},null,null,null,{"$f":"IF(B39=\"\",\"\",IF(COUNTIFS(Приложения[Вид документа],Согласование!$B39,Приложения[№ документа],Согласование!$C39,Приложения[Дата документа],Согласование!$D39,Приложения[№ договора],Согласование!$E39,Приложения[Компания],Согласование!$F39,Приложения[Дата начала договора],Согласование!$G39)=1,\"Представлен\",IF(COUNTIFS(Приложения[Вид документа],Согласование!$B39,Приложения[№ документа],Согласование!$C39,Приложения[Дата документа],Согласование!$D39,Приложения[№ договора],Согласование!$E39,Приложения[Компания],Согласование!$F39,Приложения[Дата начала договора],Согласование!$G39)=0,\"В работе\",\"Проверить\")))","v":""},{"$f":"IF(B39=\"\",\"\",IF(COUNTIF(Приложения[№ Согласование],Согласование!$H39)=0,\"В работе\",IF(COUNTIF(Приложения[№ Согласование],Согласование!$H39)=1,\"Представлен\",\"Срочно проверить\")))","v":""}]
[null,null,null,null,null,{"$f":"IF(E40=\"\",\"\",INDEX(Договора!$B$1:$D$2008,MATCH($E40,Договора!$B$1:$B$2008,0),MATCH(F$1,Договора!$B$1:$D$1,0)))","v":""},{"$f":"IF(E40=\"\",\"\",INDEX(Договора!$B$1:$D$2008,MATCH($E40,Договора!$B$1:$B$2008,0),MATCH(G$1,Договора!$B$1:$D$1,0)))","v":""},null,null,null,{"$f":"IF(B40=\"\",\"\",IF(COUNTIFS(Приложения[Вид документа],Согласование!$B40,Приложения[№ документа],Согласование!$C40,Приложения[Дата документа],Согласование!$D40,Приложения[№ договора],Согласование!$E40,Приложения[Компания],Согласование!$F40,Приложения[Дата начала договора],Согласование!$G40)=1,\"Представлен\",IF(COUNTIFS(Приложения[Вид документа],Согласование!$B40,Приложения[№ документа],Согласование!$C40,Приложения[Дата документа],Согласование!$D40,Приложения[№ договора],Согласование!$E40,Приложения[Компания],Согласование!$F40,Приложения[Дата начала договора],Согласование!$G40)=0,\"В работе\",\"Проверить\")))","v":""},{"$f":"IF(B40=\"\",\"\",IF(COUNTIF(Приложения[№ Согласование],Согласование!$H40)=0,\"В работе\",IF(COUNTIF(Приложения[№ Согласование],Согласование!$H40)=1,\"Представлен\",\"Срочно проверить\")))","v":""}]
[null,null,null,null,null,{"$f":"IF(E41=\"\",\"\",INDEX(Договора!$B$1:$D$2008,MATCH($E41,Договора!$B$1:$B$2008,0),MATCH(F$1,Договора!$B$1:$D$1,0)))","v":""},{"$f":"IF(E41=\"\",\"\",INDEX(Договора!$B$1:$D$2008,MATCH($E41,Договора!$B$1:$B$2008,0),MATCH(G$1,Договора!$B$1:$D$1,0)))","v":""},null,null,null,{"$f":"IF(B41=\"\",\"\",IF(COUNTIFS(Приложения[Вид документа],Согласование!$B41,Приложения[№ документа],Согласование!$C41,Приложения[Дата документа],Согласование!$D41,Приложения[№ договора],Согласование!$E41,Приложения[Компания],Согласование!$F41,Приложения[Дата начала договора],Согласование!$G41)=1,\"Представлен\",IF(COUNTIFS(Приложения[Вид документа],Согласование!$B41,Приложения[№ документа],Согласование!$C41,Приложения[Дата документа],Согласование!$D41,Приложения[№ договора],Согласование!$E41,Приложения[Компания],Согласование!$F41,Приложения[Дата начала договора],Согласование!$G41)=0,\"В работе\",\"Проверить\")))","v":""},{"$f":"IF(B41=\"\",\"\",IF(COUNTIF(Приложения[№ Согласование],Согласование!$H41)=0,\"В работе\",IF(COUNTIF(Приложения[№ Согласование],Согласование!$H41)=1,\"Представлен\",\"Срочно проверить\")))","v":""}]
[null,null,null,null,null,{"$f":"IF(E42=\"\",\"\",INDEX(Договора!$B$1:$D$2008,MATCH($E42,Договора!$B$1:$B$2008,0),MATCH(F$1,Договора!$B$1:$D$1,0)))","v":""},{"$f":"IF(E42=\"\",\"\",INDEX(Договора!$B$1:$D$2008,MATCH($E42,Договора!$B$1:$B$2008,0),MATCH(G$1,Договора!$B$1:$D$1,0)))","v":""},null,null,null,{"$f":"IF(B42=\"\",\"\",IF(COUNTIFS(Приложения[Вид документа],Согласование!$B42,Приложения[№ документа],Согласование!$C42,Приложения[Дата документа],Согласование!$D42,Приложения[№ договора],Согласование!$E42,Приложения[Компания],Согласование!$F42,Приложения[Дата начала договора],Согласование!$G42)=1,\"Представлен\",IF(COUNTIFS(Приложения[Вид документа],Согласование!$B42,Приложения[№ документа],Согласование!$C42,Приложения[Дата документа],Согласование!$D42,Приложения[№ договора],Согласование!$E42,Приложения[Компания],Согласование!$F42,Приложения[Дата начала договора],Согласование!$G42)=0,\"В работе\",\"Проверить\")))","v":""},{"$f":"IF(B42=\"\",\"\",IF(COUNTIF(Приложения[№ Согласование],Согласование!$H42)=0,\"В работе\",IF(COUNTIF(Приложения[№ Согласование],Согласование!$H42)=1,\"Представлен\",\"Срочно проверить\")))","v":""}]
[null,null,null,null,null,{"$f":"IF(E43=\"\",\"\",INDEX(Договора!$B$1:$D$2008,MATCH($E43,Договора!$B$1:$B$2008,0),MATCH(F$1,Договора!$B$1:$D$1,0)))","v":""},{"$f":"IF(E43=\"\",\"\",INDEX(Договора!$B$1:$D$2008,MATCH($E43,Договора!$B$1:$B$2008,0),MATCH(G$1,Договора!$B$1:$D$1,0)))","v":""},null,null,null,{"$f":"IF(B43=\"\",\"\",IF(COUNTIFS(Приложения[Вид документа],Согласование!$B43,Приложения[№ документа],Согласование!$C43,Приложения[Дата документа],Согласование!$D43,Приложения[№ договора],Согласование!$E43,Приложения[Компания],Согласование!$F43,Приложения[Дата начала договора],Согласование!$G43)=1,\"Представлен\",IF(COUNTIFS(Приложения[Вид документа],Согласование!$B43,Приложения[№ документа],Согласование!$C43,Приложения[Дата документа],Согласование!$D43,Приложения[№ договора],Согласование!$E43,Приложения[Компания],Согласование!$F43,Приложения[Дата начала договора],Согласование!$G43)=0,\"В работе\",\"Проверить\")))","v":""},{"$f":"IF(B43=\"\",\"\",IF(COUNTIF(Приложения[№ Согласование],Согласование!$H43)=0,\"В работе\",IF(COUNTIF(Приложения[№ Согласование],Согласование!$H43)=1,\"Представлен\",\"Срочно проверить\")))","v":""}]
[null,null,null,null,null,{"$f":"IF(E44=\"\",\"\",INDEX(Договора!$B$1:$D$2008,MATCH($E44,Договора!$B$1:$B$2008,0),MATCH(F$1,Договора!$B$1:$D$1,0)))","v":""},{"$f":"IF(E44=\"\",\"\",INDEX(Договора!$B$1:$D$2008,MATCH($E44,Договора!$B$1:$B$2008,0),MATCH(G$1,Договора!$B$1:$D$1,0)))","v":""},null,null,null,{"$f":"IF(B44=\"\",\"\",IF(COUNTIFS(Приложения[Вид документа],Согласование!$B44,Приложения[№ документа],Согласование!$C44,Приложения[Дата документа],Согласование!$D44,Приложения[№ договора],Согласование!$E44,Приложения[Компания],Согласование!$F44,Приложения[Дата начала договора],Согласование!$G44)=1,\"Представлен\",IF(COUNTIFS(Приложения[Вид документа],Согласование!$B44,Приложения[№ документа],Согласование!$C44,Приложения[Дата документа],Согласование!$D44,Приложения[№ договора],Согласование!$E44,Приложения[Компания],Согласование!$F44,Приложения[Дата начала договора],Согласование!$G44)=0,\"В работе\",\"Проверить\")))","v":""},{"$f":"IF(B44=\"\",\"\",IF(COUNTIF(Приложения[№ Согласование],Согласование!$H44)=0,\"В работе\",IF(COUNTIF(Приложения[№ Согласование],Согласование!$H44)=1,\"Представлен\",\"Срочно проверить\")))","v":""}]
[null,null,null,null,null,{"$f":"IF(E45=\"\",\"\",INDEX(Договора!$B$1:$D$2008,MATCH($E45,Договора!$B$1:$B$2008,0),MATCH(F$1,Договора!$B$1:$D$1,0)))","v":""},{"$f":"IF(E45=\"\",\"\",INDEX(Договора!$B$1:$D$2008,MATCH($E45,Договора!$B$1:$B$2008,0),MATCH(G$1,Договора!$B$1:$D$1,0)))","v":""},null,null,null,{"$f":"IF(B45=\"\",\"\",IF(COUNTIFS(Приложения[Вид документа],Согласование!$B45,Приложения[№ документа],Согласование!$C45,Приложения[Дата документа],Согласование!$D45,Приложения[№ договора],Согласование!$E45,Приложения[Компания],Согласование!$F45,Приложения[Дата начала договора],Согласование!$G45)=1,\"Представлен\",IF(COUNTIFS(Приложения[Вид документа],Согласование!$B45,Приложения[№ документа],Согласование!$C45,Приложения[Дата документа],Согласование!$D45,Приложения[№ договора],Согласование!$E45,Приложения[Компания],Согласование!$F45,Приложения[Дата начала договора],Согласование!$G45)=0,\"В работе\",\"Проверить\")))","v":""},{"$f":"IF(B45=\"\",\"\",IF(COUNTIF(Приложения[№ Согласование],Согласование!$H45)=0,\"В работе\",IF(COUNTIF(Приложения[№ Согласование],Согласование!$H45)=1,\"Представлен\",\"Срочно проверить\")))","v":""}]
[null,null,null,null,null,{"$f":"IF(E46=\"\",\"\",INDEX(Договора!$B$1:$D$2008,MATCH($E46,Договора!$B$1:$B$2008,0),MATCH(F$1,Договора!$B$1:$D$1,0)))","v":""},{"$f":"IF(E46=\"\",\"\",INDEX(Договора!$B$1:$D$2008,MATCH($E46,Договора!$B$1:$B$2008,0),MATCH(G$1,Договора!$B$1:$D$1,0)))","v":""},null,null,null,{"$f":"IF(B46=\"\",\"\",IF(COUNTIFS(Приложения[Вид документа],Согласование!$B46,Приложения[№ документа],Согласование!$C46,Приложения[Дата документа],Согласование!$D46,Приложения[№ договора],Согласование!$E46,Приложения[Компания],Согласование!$F46,Приложения[Дата начала договора],Согласование!$G46)=1,\"Представлен\",IF(COUNTIFS(Приложения[Вид документа],Согласование!$B46,Приложения[№ документа],Согласование!$C46,Приложения[Дата документа],Согласование!$D46,Приложения[№ договора],Согласование!$E46,Приложения[Компания],Согласование!$F46,Приложения[Дата начала договора],Согласование!$G46)=0,\"В работе\",\"Проверить\")))","v":""},{"$f":"IF(B46=\"\",\"\",IF(COUNTIF(Приложения[№ Согласование],Согласование!$H46)=0,\"В работе\",IF(COUNTIF(Приложения[№ Согласование],Согласование!$H46)=1,\"Представлен\",\"Срочно проверить\")))","v":""}]
[null,null,null,null,null,{"$f":"IF(E47=\"\",\"\",INDEX(Договора!$B$1:$D$2008,MATCH($E47,Договора!$B$1:$B$2008,0),MATCH(F$1,Договора!$B$1:$D$1,0)))","v":""},{"$f":"IF(E47=\"\",\"\",INDEX(Договора!$B$1:$D$2008,MATCH($E47,Договора!$B$1:$B$2008,0),MATCH(G$1,Договора!$B$1:$D$1,0)))","v":""},null,null,null,{"$f":"IF(B47=\"\",\"\",IF(COUNTIFS(Приложения[Вид документа],Согласование!$B47,Приложения[№ документа],Согласование!$C47,Приложения[Дата документа],Согласование!$D47,Приложения[№ договора],Согласование!$E47,Приложения[Компания],Согласование!$F47,Приложения[Дата начала договора],Согласование!$G47)=1,\"Представлен\",IF(COUNTIFS(Приложения[Вид документа],Согласование!$B47,Приложения[№ документа],Согласование!$C47,Приложения[Дата документа],Согласование!$D47,Приложения[№ договора],Согласование!$E47,Приложения[Компания],Согласование!$F47,Приложения[Дата начала договора],Согласование!$G47)=0,\"В работе\",\"Проверить\")))","v":""},{"$f":"IF(B47=\"\",\"\",IF(COUNTIF(Приложения[№ Согласование],Согласование!$H47)=0,\"В работе\",IF(COUNTIF(Приложения[№ Согласование],Согласование!$H47)=1,\"Представлен\",\"Срочно проверить\")))","v":""}]